Workbook

Sheet Cover Page
D1: Add company logo
N2: Version 22.2
B8: Add photo
N13: Notes:
N14: This template may require adjustments by individual operators to meet specific reporting requirements as defined in the site Permit(s)
B29: Annual Performance Report 2022
B31: Permit EPR/NP3739PD/V009
B33: The Coventry and Solihull Waste Disposal Company Limited
B35: CSWDC Ltd
B37: CSWDC Ltd
B39: Year: | C39: 2022
B41: Address: | C41: Bar Road, Coventry, CV3 4AN
B43: Tel: | C43: 02476507428
B45: Email: | C45: mick.schilling@cswdc.co.uk
B47: Prepared by: | C47: M Schilling | F47: Position: | G47: EH&S Advisor
B49: Approved by: | C49: E Price | F49: Position: | G49: C+P Manager
B51: Version: | C51: 1
B53: Issue Date: | C53: 2023-01-30

Sheet Contents
A1: =+'Cover Page'!$B$29 -> Annual Performance Report 2022 | E1: =+'Cover Page'!$B$33 -> The Coventry and Solihull Waste Disposal Company Limited
A3: Contents | K3: Notes:
A4: Section | B4: Subject | H4: Page | K4: Section references and Page nos. to be inserted
B5: Facility Information | H5: 3 | K5: Sections and Subjects may require adjustment by individual operators to meet specific reporting requirements as defined in the sites Permit(s)
B6: Operational Summary | H6: 4
B7: Operational Data | H7: 5
B8: Performance Form 1 | H8: 8
B9: Energy Form 1 | H9: 9
B10: Permit Compliance | H10: 10
B11: Improvements | H11: 11
B12: Public Liasion | H12: 12
B13: Carbon Dioxide Emissions | H13: 13
B14: Residue Quality - Optional | H14: 15
B15: Emissions to Water | H15: 16
B16: Emissions to Air (periodically monitored) | H16: 17
B17: Emissions to Air (continuously monitored) | H17: 18
B18: Hydrogen Chloride emissions | H18: 19
B19: Sulphur Dioxdie emsissions | H19: 20
B20: Oxides of Notrigen emissions | H20: 21
B21: Total Organic Carbon emissions | H21: 22
B22: Particulate Matter emissions | H22: 23
B23: Carbon Monoxide emissions | H23: 24
B24: Ammonia emissions | H24: 26
A27: Version Control
A28: Section | B28: Information | H28: Date
A35: Distribution
A36: Copy | B36: Name, Role | H36: No.
A45: This report is required under the Industrial Emissions Directive’s Article 55(2) requirements on reporting and public information on waste incineration plants and co-incineration plants, which require the operator to produce an annual report on the functioning and monitoring of the plant and make it available to the public.

Sheet Facility Info
A1: =+'Cover Page'!$B$29 -> Annual Performance Report 2022 | E1: =+'Cover Page'!$B$33 -> The Coventry and Solihull Waste Disposal Company Limited
A3: Plant Description and Design | K3: Notes:
A5: The Waste to Energy plant, which is located at Bar Road in Coventry, processes Municipal Household waste arising in the City of Coventry and the neighbouring borough of Solihull. Municipal household waste from other nearby local authorities is also processed at the plant. The plant is operated by The Coventry and Solihull Waste Disposal Company Ltd. The main activity at the installation is thermal treatment of municipal waste and recovery of energy, in the form of heat which is converted to electricity for export to the grid. The installation also has the capability to export heat in the form of either High or Low Pressure steam to a district heating scheme operated by Engie UK. A limited amount of hazardous waste, containing less than 1% halogenated organic substances (as chlorine), is also burned with the municipal waste. The installation includes waste receipt and storage, steam generation boilers, abatement of the exhaust gas, on-site storage of residues and all systems for controlling and monitoring combustion operation. The steam produced is used to drive 2 steam turbine driven generators. The plant design is capable of processing approximately 315,000 tonnes of waste per annum/36 tonnes per hour in three combustion units (12 tonne per unit). The heat produced is used to generate 17.7MW of electricity and up to 16MW heat energy. Refuse collection vehicles enter the reception hall and deposit their waste into a storage bunker. The material is then loaded by crane into each of the combustion units via feed hoppers from the storage bunker. After entering the combustion chamber via the refuse feed ram the material is allowed to fall onto the grate in a controlled manner. The moving grate mechanisms are used to agitate the waste as it progresses down to the ash discharge. As the waste moves along, pre-heated primary air is introduced from beneath the grate enabling the waste to go through a series of drying and burning areas. Secondary air is introduced from above the grate for combustion control. Auxiliary gas fired burners are located in the combustion chamber both to heat it up on start-up and to maintain the final gas temperature if necessary. The hot gases are maintained at a minimum temperature of 850C for 2 seconds in the combustion chamber before passing to the boiler, economiser and abatement plant. Each combustion unit is equipped with a 3-bank water tube boiler, raising steam at 17 bar and 208C. Economisers are fitted downstream of each combustion unit to pre-heat the incoming feed water. Combustion is controlled with the use of an infrared imaging computer system, which uses fuzzy logic systems to control various parameters of the plant, ensuring improved efficiency and emission performance when compared to fully manual control. Each combustion unit is provided with its own gas cleaning and monitoring equipment. Gas cleaning comprises activated carbon injection, then dry scrubbing with hydrated lime. The gases pass through bag filters to remove particulates prior to discharge to atmosphere via a single 92m stack. NOx control is achieved by Selective Non Catalytic Reduction (SNCR) using ammonium hydroxide injection. Emissions from the stack are continuously monitored for particulates, carbon monoxide (CO), sulphur dioxide (SO2), hydrogen chloride (HCl), oxygen (O2), nitrogen oxides (NOx) and volatile organic compounds (VOC). There is no discharge of process liquids to controlled waters. Uncontaminated surface and roof waters are discharged to the surface water drainage system, via penstock equipped interceptors. All process waste waters are discharged to foul sewer and these are treated at Finham Sewage Treatment Works, which is operated by Severn Trent Water. Bottom ash and metal content from the combustion unit grate is quenched with water. Both fractions are then conveyed to individual concrete storage bunkers prior to removal for reprocessing into aggregates or for recycling back into the steel industry. Air Pollution Control Residues (APCR) from the bag filters are collected continuously and stored in an enclosed silo prior to removal from site for disposal. | K5: Include summary of plant design, design capacity, no. of combustion lines, electrical and heat capacity and any other general information that descibes the facility, its location and purpose
A20: Summary of Operational Processes and Procedures
A22: The plant consists of three separate combustion units that process up to a maximum of 12 tonnes of waste per hour. There are two steam turbine driven electrical generating sets on the plant which convert the heat energy recovered from the combustion process into electricity. The generating sets are designated as G1 and G2. G1 has a capacity of 12.9MW and G2 a capacity of 4.8 MW. The process energy requirements are taken from the electricity generated and the surplus is exported to the grid. The plant also has the capacity to export heat, in the form of high pressure and low pressure steam. The following table categorises the types and permitted maximum amounts of wastes processed. EWC Code Description Amount 19 12 01 paper and cardboard (confidential waste separately collected)  13% 03 01 04 sawdust, shavings, cuttings, wood, particle board and veneer containing hazardous substances 19 12 12 other wastes (including mixtures of materials) from mechanical treatment of wastes other than those mentioned in 19 12 11 20 01 01 paper and cardboard 20 01 08 biodegradable kitchen waste 20 02 01 biodegradable waste 20 03 01 mixed municipal waste  84% 20 03 02 waste from markets 20 03 07 bulky waste 20 03 99 municipal waste not otherwise specified 02 03 04 Wastes unsuitable for consumption or processing 19 12 08 20 01 11 Textiles other 13 07 01* fuel oil and diesel 1% 13 08 99* wastes not otherwise specified 15 02 02* absorbents, filter materials (including oil filters not otherwise specified), wiping cloths, protective clothing contaminated by dangerous substances 15 02 03 absorbents, filter materials, wiping cloths and protective clothing other than those mentioned in 15 02 02 16 07 08* waste containing oil 19 12 10 Combustible waste (refuse derived fuel) 1% 19 01 99 Wastes not otherwise specified 1% 18 01 04 18 01 06 18 01 07 18 01 09 Healthcare hazardous waste | K22: Include summary of key processes and procedures such as (but not limited to); waste reception, control rooms, grate, bed and bolier, energy & heat generation, cooling systems, residue management, emission controls, health and safety systems, maintenance

Sheet Operational Data
A1: =+'Cover Page'!$B$29 -> Annual Performance Report 2022 | E1: =+'Cover Page'!$B$33 -> The Coventry and Solihull Waste Disposal Company Limited
A3: Operational Data | K3: Notes:
A4: Plant Size | B4: 315000 | D4: tonnes pa | E4: 77 | F4: MWth | G4: 18 | H4: MWe | K4: * - RDF to include SRF
A5: No. of combustion lines | B5: 3 | D5: No. of Turbines: | F5: 2 | K5: ** - CHP plants only
K6: 2020 updates include; heat in MWh, water in Litres, NCV in MJ/kg
A7: Waste types received | B7: Unit | C7: Q1 | D7: Q2 | E7: Q3 | F7: Q4 | G7: Year Total | H7: %
A8: Household / Local Authority | B8: tonnes | C8: 79166.78 | D8: 76494.25 | E8: 68551.4 | F8: 73298.37 | G8: =SUM(C8:F8) -> 297510.8 | H8: =IF(G8>0,G8/$G$18,"-") -> 0.9989599106 | K8: Availabiity Definition: 'the availability of a line is to be calculated by the number of hours the line reported Continuously Monitored emission levels to the Regulator through the calendar year divided by the total number of hours in that year. The overall plant availability is calculated as the Mean of all lines in the plant. For clarity this includes periods of Other Than Normal Operating Conditions (OTNOC) and abnormal operation.' Rationale: The primary function of an Energy from Waste facility is the disposal of waste. It follows therefore that the availability of a plant is determined by the period of time a facility spends undertaking this activity.
A9: Commercial & Industrial | G9: =SUM(C9:F9) -> 0 | H9: -
A10: Hazardous | C10: 88.8 | D10: 77.54 | E10: 56.34 | F10: 87.08 | G10: 309.76 | H10: 0.001040089375
A11: Clinical | G11: 0 | H11: -
A12: Waste wood (biomass) | G12: 0 | H12: -
A13: Refuse Derived Fuel * - H'hold/LA | G13: =SUM(C13:F13) -> 0 | H13: -
A14: Refuse Derived Fuel * - C&I | G14: 0 | H14: -
A15: Other [Please specify] | G15: 0 | H15: -
A16: Other [Please specify]
A17: Other [Please specify]
A18: Total waste received | C18: =SUM(C8:C17) -> 79255.58 | D18: =SUM(D8:D17) -> 76571.79 | E18: =SUM(E8:E17) -> 68607.74 | F18: =SUM(F8:F17) -> 73385.45 | G18: =SUM(G8:G17) -> 297820.56 | H18: 1
A19: Rejected Waste | G19: =SUM(C19:F19) -> 0 | H19: =IF(G19>0,G19/$G$18,"-") -> -
A20: Unprocessed waste transferred out | G20: =SUM(C20:F20) -> 0 | H20: =IF(G20>0,G20/$G$18,"-") -> -
A21: Total waste combusted | C21: =C18-SUM(C19:C20) -> 79255.58 | D21: =D18-SUM(D19:D20) -> 76571.79 | E21: 68607.74 | F21: 73385.45 | G21: =SUM(C21:F21) -> 297820.56 | H21: =IF(G21>0,G21/$G$18,"-") -> 1
A23: Energy Useage / Export | B23: Unit | C23: Q1 | D23: Q2 | E23: Q3 | F23: Q4 | G23: Year Total | H23: KWh/te
A24: Power Generated | B24: MWh | C24: 34184 | D24: 34751 | E24: 30171 | F24: 31890 | G24: =SUM(C24:F24) -> 130996 | H24: =IF(G24>0,G24*1000/$G$21,"-") -> 439.8487465
A25: Power Exported | C25: 28280 | D25: 28883 | E25: 24982 | F25: 26122 | G25: =SUM(C25:F25) -> 108267 | H25: =IF(G25>0,G25*1000/$G$21,"-") -> 363.5309799
A26: Power Used on site | C26: 5858 | D26: 5806 | E26: 5390 | F26: 5794 | G26: =SUM(C26:F26) -> 22848 | H26: =IF(G26>0,G26*1000/$G$21,"-") -> 76.7173361
A27: Power Imported | C27: 60.5 | D27: 13 | E27: 275 | F27: 71 | G27: 419.5 | H27: =IF(G27>0,G27*1000/$G$21,"-") -> 1.408566286
A28: Parasitic Load | B28: % | C28: =IF(C24>0,1-C25/(C24+C27),"-") -> 0.1741739549 | D28: =IF(D24>0,1-D25/(D24+D27),"-") -> 0.1691692556 | E28: =IF(E24>0,1-E25/(E24+E27),"-") -> 0.1794652828 | F28: =IF(F24>0,1-F25/(F24+F27),"-") -> 0.1826914052 | G28: =IF(G24>0,1-G25/(G24+G27),"-") -> 0.1761474103
A29: Thermal Energy Produced ** | B29: MWh | C29: 3451 | D29: 3733 | E29: 2675 | F29: 4778 | G29: =SUM(C29:F29) -> 14637 | H29: =IF(G29>0,G29*1000/$G$21,"-") -> 49.14704344
A30: Thermal Energy Exported ** | C30: 3081 | D30: 3333 | E30: 2388 | F30: 4266 | G30: 13068 | H30: =IF(G30>0,G30*1000/$G$21,"-") -> 43.87877049
A31: R1 value (if applicable)
A33: Waste Disposal & Recovery | B33: Unit | C33: Q1 | D33: Q2 | E33: Q3 | F33: Q4 | G33: Year Total | H33: % inputs
A34: APC Residues - produced | B34: tonnes | C34: 3041 | D34: 3111 | E34: 2738 | F34: 2956 | G34: =SUM(C34:F34) -> 11846 | H34: =IF(G34>0,G34/$G$21,"-") -> 0.03977562865
A35: IBA - produced | C35: 10959 | D35: 12376 | E35: 10157 | F35: 9873 | G35: 43365 | H35: =IF(G35>0,G35/$G$21,"-") -> 0.1456078116
A36: Metals recycling | C36: 2091 | D36: 2117 | E36: 1847 | F36: 1980 | G36: =SUM(C36:F36) -> 8035 | H36: 0.02697933279
A37: Other | C37: 0 | D37: 0 | E37: 0 | F37: 0 | G37: =SUM(C37:F37) -> 0 | H37: -
A38: Other | C38: 0 | D38: 0 | E38: 0 | F38: 0 | G38: 0 | H38: -
A39: Other | C39: 0 | D39: 0 | E39: 0 | F39: 0 | G39: 0 | H39: -
A41: Raw Material Usage | B41: Unit | C41: Q1 | D41: Q2 | E41: Q3 | F41: Q4 | G41: Year Total | H41: kg or Ltr /te
A42: Mains Water | B42: ltrs | C42: 15019 | D42: 19201 | E42: 68853 | F42: 19055 | G42: =SUM(C42:F42) -> 122128 | H42: =IF(G42>0,G42/$G$21,"-") -> 0.4100724275
A43: Other Water | B43: ltrs | C43: 97832 | D43: 88113 | E43: 44313 | F43: 93085 | G43: 323343 | H43: =IF(G43>0,G43/$G$21,"-") -> 1.085697374
A44: Ammonia | B44: kgs | C44: 129.5 | D44: 276 | E44: 308 | F44: 339 | G44: 1052.5 | H44: 0.003534007189
A45: Urea | B45: kgs | C45: 0 | D45: 0 | E45: 0 | F45: 0 | G45: =SUM(C45:F45) -> 0 | H45: -
A46: Activated Carbon | B46: kgs | C46: 19.8 | D46: 21.1 | E46: 22.5 | F46: 24.9 | G46: 88.3 | H46: 0.0002964872539
A47: Lime / hydrated lime | B47: kgs | C47: 1266 | D47: 1341 | E47: 1260 | F47: 1311 | G47: 5178 | H47: 0.01738630805
A48: Fuel oil | B48: ltrs | C48: 6351 | D48: 8900 | E48: 9162 | F48: 9036 | G48: 33449 | H48: 0.1123125952 | J48: The vast majority of this oil useage is for mobile plant at our HWRC
A49: Gas | B49: cf | C49: 951300 | D49: 546400 | E49: 764000 | F49: 1634400 | G49: 3896100 | J49: Burners are almost always run on gas, not oil
A50: Other | C50: 0 | D50: 0 | E50: 0 | F50: 0 | G50: 0
A52: Summary | B52: Line/Unit | C52: Q1 | D52: Q2 | E52: Q3 | F52: Q4 | G52: Year Total | J52: Hrs in year
A53: Availability of waste combustion by line, hrs | B53: 1 | C53: 1994 | D53: 1955 | E53: 2096 | F53: 2147 | G53: =SUM(C53:F53) -> 8192 | H53: 0.9351 | J53: 8760
B54: 2 | C54: 1885 | D54: 2057 | E54: 1453 | F54: 1823 | G54: 7218 | H54: 0.824
B55: 3 | C55: 2068 | D55: 2106 | E55: 2032 | F55: 1930 | G55: 8136 | H55: 0.929
B56: 4 | G56: 0 | H56: x %
B57: 5 | G57: =SUM(C57:F57) -> 0 | H57: x %
A58: Overall Availability, mean avg. of all lines, hrs | C58: 90.5 | D58: 93 | E58: 85 | F58: 90 | G58: =AVERAGE(G53:G57) -> 4709.2 | H58: 0.9
A59: Hours of turbine operations, hrs | B59: 1 | C59: 2142 | D59: 2181 | E59: 2035 | F59: 2185 | G59: 8543 | H59: 0.975
A60: Hours of turbine operations, hrs | B60: 2 | C60: 1932 | D60: 2099 | E60: 1863 | F60: 1794 | G60: 7688 | H60: 0.878
A61: Hours of heat / steam export | C61: 1932 | D61: 2099 | E61: 1863 | F61: 1794 | G61: 7688 | H61: =IF(B61>0,G60/J53,"n/a") -> n/a
A62: Net Calorific Value of waste | B62: MJ/kg | C62: 10.99 | D62: 11 | E62: 11 | F62: 11 | H62: -
A63: Abnormal Events | B63: qty. | C63: 1 | D63: 0 | E63: 5 | F63: 0 | G63: 6 | H63: =IF(G63>0,"yes","no") -> yes
A64: Abnormal operation | B64: hours | C64: 0 | D64: 0 | E64: 13 | G64: 13 | H64: =+(G64)/J53 -> 0.001484018265
A65: Permit Breaches | B65: qty. | C65: 0 | D65: 0 | E65: 0 | F65: 0 | G65: 0 | H65: =IF(G65>0,"yes","no") -> no

Sheet Operational Summary
A1: =+'Cover Page'!$B$29 -> Annual Performance Report 2022 | E1: =+'Cover Page'!$B$33 -> The Coventry and Solihull Waste Disposal Company Limited
A3: Summary of Plant Operations and Maintenance during the reporting year | K3: Notes:
A5: There were Minor outages as follows - Unit 2 Minor outage February, Unit 1 Minor outage May, Unit 3 Minor outage July, Unit 2 Major outage including a full boiler tube replacement September, Unit 3 Minor outage November. There was a total plant power outage in August/September to undertake specific work requiring a full shutdown. A further Nox trial took place in January to check ahead of the BREF and associated changes to ELVs 16 explosive cleaning visits were undertaken on units 2 and 3 (unit 1 has SPG system). Emission monitoring was undertaken in March and August by Element. The cooling towers were serviced, including clean and chlorination in May and November. There were statutory inspections on all units in the year. A full set of new CEMs equipment was installed in December to provide full redundancy in the event of equipment faults. | K5: Include summary of key operational and/or mainteanance activity undertaken in the year, such as any major component upgrades and/or replacements
A29: Summary of Residue Handling for the reporting year
A31: Incinerator bottom ash is separated and stored on site for collection by aggregate HGVs, which as loaded by crane before transporting the ash to a processing site which is operated by a third party. All metals metals are left mixed with the IBA and removed from site for processing by a third party (Johnsons Aggregates, Derby), and the metal is now separated by them on their premises. APCr is conveyed by the FGT system into storage silos. From there it is deposited into tankers (Lomas) for transortation to a third party processor (Augean). | K31: Include in here a summary of residue handling regimes and destinations

Sheet Perf. Form 1
A1: =+'Cover Page'!C39 -> 2022 | B1: Annual Reporting Performance Form 1
A3: =+'Cover Page'!B31 -> Permit EPR/NP3739PD/V009 | F3: Operator: | G3: CSWDC Ltd
A4: Facility: | B4: =+'Cover Page'!B33:I33 -> The Coventry and Solihull Waste Disposal Company Limited | F4: Form: | G4: Performance 1
A6: Reporting Period from: | D6: 2022-01-01 | F6: to: | G6: 2022-12-31
A8: =+A1 -> 2022 | B8: Annual Reporting of Waste Disposal and Recovery
A9: Waste Description | C9: Disposal Route(s) | E9: Disposal Tonnes | G9: Recovery Tonnes | I9: % / tonne of waste incinerated
A10: 1) Hazardous Wastes
A11: APC Residues | C11: pretreatment and landfill | E11: 11846 | G11: 0 | I11: =IF((E11+G11)>0,(E11+G11)/'Operational Data'!$G$21, "-") -> 0.03977562865
A12: IBA | C12: n/a | E12: 0 | G12: 0 | I12: =IF((E12+G12)>0,(E12+G12)/'Operational Data'!$G$21, "-") -> -
I13: =IF((E13+G13)>0,(E13+G13)/'Operational Data'!$G$21, "-") -> -
I14: =IF((E14+G14)>0,(E14+G14)/'Operational Data'!$G$21, "-") -> -
A15: Total Hazardous Waste | E15: =SUM(E11:F14) -> 11846 | G15: =SUM(G11:H14) -> 0 | I15: =IF((E15+G15)>0,(E15+G15)/'Operational Data'!$G$21, "-") -> 0.03977562865
A17: 2) Non-Hazardous Wastes
A18: IBA | C18: Recovery | E18: 0 | G18: 43365 | I18: =IF((E18+G18)>0,(E18+G18)/'Operational Data'!$G$21, "-") -> 0.1456078116
A19: Ferrous Metal | C19: Recovery | E19: 0 | G19: 8035 | I19: =IF((E19+G19)>0,(E19+G19)/'Operational Data'!$G$21, "-") -> 0.02697933279
A20: Process Water | C20: Disposal to foul sewer | E20: 105726 | G20: 0 | I20: =IF((E20+G20)>0,(E20+G20)/'Operational Data'!$G$21, "-") -> 0.3549989967
I21: =IF((E21+G21)>0,(E21+G21)/'Operational Data'!$G$21, "-") -> -
I22: =IF((E22+G22)>0,(E22+G22)/'Operational Data'!$G$21, "-") -> -
A23: Total Non-Hazardous Waste | E23: =SUM(E18:F22) -> 105726 | G23: =SUM(G18:H22) -> 51400 | I23: =IF((E23+G23)>0,(E23+G23)/'Operational Data'!$G$21, "-") -> 0.5275861411
A24: TOTAL WASTE | E24: =+E23+E15 -> 117572 | G24: =+G23+G15 -> 51400 | I24: =IF((E24+G24)>0,(E24+G24)/'Operational Data'!$G$21, "-") -> 0.5673617698
A26: Operator’s comments :
A31: =+A1 -> 2022 | B31: Annual Reporting of Water and Other Raw Material Usage
A32: Raw Material | E32: Usage | G32: Unit | H32: Specific Useage | J32: Unit
A33: Mains Water | E33: =+'Operational Data'!G42 -> 122128 | G33: m3 | H33: =IF(E33>0,E33/'Operational Data'!$G$21,"-") -> 0.4100724275 | J33: m3/te
A34: Total Water | E34: =+'Operational Data'!G43+'Operational Data'!G42 -> 445471 | G34: m3 | H34: =IF(E34>0,E34/'Operational Data'!$G$21,"-") -> 1.495769802 | J34: m3/te
A35: Urea / Ammonia | E35: =+'Operational Data'!G44 -> 1052.5 | G35: kg | H35: =IF(E35>0,E35/'Operational Data'!$G$21,"-") -> 0.003534007189 | J35: kg/te
A36: Activated Carbon | E36: =+'Operational Data'!G46 -> 88.3 | G36: kg | H36: =IF(E36>0,E36/'Operational Data'!$G$21,"-") -> 0.0002964872539 | J36: kg/te
A37: Lime / hydrated lime / Sodium Bicarb. | E37: =+'Operational Data'!G47 -> 5178 | G37: kg | H37: =IF(E37>0,E37/'Operational Data'!$G$21,"-") -> 0.01738630805 | J37: kg/te
A39: Operator’s comments :
A43: =+A31 -> 2022 | B43: Annual Reporting of other performance indicators
A44: Parameter | C44: Results by Line
C45: A1 | D45: A2 | E45: A3 | F45: A4 | G45: A5 | I45: Turbine 1 | J45: Turbine 2
A46: Operating hours for the year, hours | C46: 8191 | D46: 7218 | E46: 8135 | I46: =+'Operational Data'!G59 -> 8543 | J46: =+'Operational Data'!G60 -> 7688
A47: Number of periods of abnormal operation, qty. | C47: 4 | D47: 0 | E47: 2 | I47: 0 | J47: 0 | L47: One event affected both lines A1 and A3
A48: Cumulative hours of abnormal operation for this year, hours | C48: 8.33 | D48: 0 | E48: 4.5 | I48: 0 | J48: 0
A50: Operator’s comments :
A54: Signed: | G54: Date: | H54: 2023-01-30

Sheet Energy Form 1
A1: =+'Cover Page'!C39 -> 2022 | B1: Annual Reporting of Energy Usage/Export
A3: =+'Cover Page'!B31 -> Permit EPR/NP3739PD/V009 | F3: Operator: | G3: CSWDC Ltd
A5: Facility: | B5: =+'Cover Page'!B33:I33 -> The Coventry and Solihull Waste Disposal Company Limited | F5: Form: | G5: Energy 1
A7: Reporting Period from: | D7: =+'Perf. Form 1'!D6:E6 -> 2022-01-01 | F7: to: | G7: =+'Perf. Form 1'!G6:H6 -> 2022-12-31
A9: Energy Source | D9: Energy Usage | F9: Unit | G9: Specific Useage (KWh/tonne incinerated
A10: Electricity Produced | D10: =+'Operational Data'!G24 -> 130996 | F10: MWh | G10: =+'Operational Data'!H24 -> 439.8487465
A11: Electricity Imported | D11: =+'Operational Data'!G27 -> 419.5 | F11: MWh | G11: =+'Operational Data'!H27 -> 1.408566286
A12: Electricity Exported | D12: =+'Operational Data'!G25 -> 108267 | F12: MWh | G12: =+'Operational Data'!H25 -> 363.5309799
A13: Gas Oil | F13: tonnes
A14: Steam/hot water exported | D14: =+'Operational Data'!G30 -> 13068 | F14: GWh | G14: =+'Operational Data'!H30 -> 43.87877049
A18: Operator’s comments :
A19: Vast majority of gas oil used for ioperating mobile plant at the HWRC and running maintenance plant during outages
A29: Signed: | G29: Date: | H29: 2023-01-30

Sheet Permit Compliance
A1: =+'Cover Page'!$B$29 -> Annual Performance Report 2022 | E1: =+'Cover Page'!$B$33 -> The Coventry and Solihull Waste Disposal Company Limited
A3: Summary of Permit Compliance
A5: Compliance with permit limits for continuously monitored pollutants
A7: The plant met its emission limits as shown in the table below:
A8: Substance | C8: Percentage time compliant during operation | L8: Notes:
C9: Half-hourly limit | F9: Daily limit | L9: Report to 2 decimal places, i.e. xx.xx% Please provide a brief summary of each notification or non-compliance in the table (rather than just referring to notifications that were sent to the Regulator).
A10: Particulates | C10: 1 | F10: 1
A11: Oxides of nitrogen | C11: 1 | F11: 1
A12: Sulphur dioxide | C12: 1 | F12: 1
A13: Carbon monoxide | C13: 100% 95% of 10-min averages | F13: 1
A14: Total organic carbon | C14: 1 | F14: 1
A15: Hydrogen chloride | C15: 1 | F15: 1
A16: Hydrogen fluoride | C16: 1 | F16: 1
A19: Summary of any notifications or non-compliances under the permit
A20: Date | B20: Summary of notification or non-compliance [including Line/Reference] | E20: Reason | H20: Measures taken to prevent reoccurrence
A21: 2022-02-27 | B21: By-pass dampler opened due to a fault | E21: Air line failed | H21: Routine replacement on PPM
A22: 2022-07-01 | B22: CEMs lost | E22: Stand-by switching failed | H22: Fault rectified by service tech
A23: 2022-08-31 | B23: CEMs lost FID | E23: Stand-by instrument failed whilst duty was out of service | H23: Taken off line. Both instruments repaired
A24: 2022-09-03 | B24: By-pass damper opened due to a fault | E24: Damper seal failure | H24: Taken off line for seal replacement
A25: 2022-10-09 | B25: CEMs lost | E25: CEMs comms failure | H25: Burned out coil
A27: Summary of any complaints received and actions to taken to resolve them.
A28: Date | B28: Summary of complaint [including Line/Reference] | E28: Reason * | H28: Measures taken to prevent reoccurrence
A29: 2022-04-26 | B29: Odour complaint from neighbour. Not thought to be process related from the description, but was acted upon as a precaution | E29: Possible escape of waste odour, though other resident uses styrene solvents in garage for paintwork | H29: All odour controls checked as a precaution
E34: * including whether substantiated by the operator or the EA

Sheet Improvements
A1: =+'Cover Page'!$B$29 -> Annual Performance Report 2022 | E1: =+'Cover Page'!$B$33 -> The Coventry and Solihull Waste Disposal Company Limited
A3: Summary of Plant Improvements
A5: Summary of any efficiency improvements that have been completed within the year.
A6: Improve plant identification, labelling and drawings Formalise a random testing section of the Drugs & Alcohol policy, to include staff and contractors. Update the induction film to suit the changes in the policy Crane bay fire escape improvements - modernise and maintain a user friendly hatched escape system, existing is poorly maintained and very difficult to use Improve water meter access to enable reading of values - options of altering meter positions, improving access covers, etc. Review and improve the office energy efficiency policy Review and improve the paper reduction policy in order to move towards a paperless office Improve CEMs redundancy by installing a complete back up in another location on the plant as per insurers recommendation
A16: Summary of any permit improvement conditions that have been completed within the year and the resulting environmental benefits.
A17: Review and improve the office energy efficiency policy Review and improve the paper reduction policy in order to move towards a paperless office Improve CEMs redundancy by installing a complete back up in another location on the plant as per insurers recommendation
A27: Summary of any changes to the plant or operating techniques which required a variation to the permit and a summary of the resulting environmental impact.
A28: N/A
A38: Summary of any other improvements made to the plant or planned to be made and a summary of the resulting environmental benefits.
A39: N/A

Sheet Public Liasion
A1: =+'Cover Page'!$B$29 -> Annual Performance Report 2022 | E1: =+'Cover Page'!$B$33 -> The Coventry and Solihull Waste Disposal Company Limited
A3: Details of Public & Stakeholder Liasion
A5: Summary of events held during the reporting year.
A6: Date | C6: Description
C7: No site visits for educational or informative purposes in the year. Since COVID19 there have not been any enquiries at all
A16: List of events planned for next year
A17: Date | C17: Description
C18: Hopefully interest will grow back to past levels and educational visits can recommence
A29: If you wish to be involved in the public liasion programme, please contact info@cswdc.co.uk

Sheet CO2 N20
A1: =+'Cover Page'!$B$29 -> Annual Performance Report 2022 | C1: =+'Cover Page'!$B$33 -> The Coventry and Solihull Waste Disposal Company Limited
A3: Carbon dioxide emissions and biogenic content of waste inputs | E3: Notes:
A5: Carbon dioxide emissions (all types of plant)
A6: Annual mass of carbon dioxide released | B6: x tonnes | C6: 240065
A7: Annual mass of carbon dioxide released per tonne of waste burned | B7: x tonnes | C7: =SUM(C6/'Operational Data'!G21) -> 0.8060726231
A8: Annual mass of carbon dioxide released per MWh of energy generated | B8: x tonnes | C8: =SUM(C6/'Operational Data'!G24) -> 1.83261321
A9: Description of how annual carbon dioxide mass emission has been calculated | B9: Where available, data from CO2 CEMS should be used; otherwise, a suitable emissions factor should be used based on the tonnage of waste burned e.g.0.992 tCO2/t waste as per Tolvik report 2021, or other justified emissions factor - refer to adjacent Environment Agency guidance note or updated version for example descriptive text.
A11: Nitrous oxide emissions (only plants which use ammonia or urea to abate NOx emissions) | E11: equiv factor | G11: result N20 as CO2 equiv
A12: Total annual mass emissions of nitrous oxide | B12: x tonnes | C12: 32.6 | E12: 298 | G12: =SUM(C12*E12) -> 9714.8
A13: Description of how annual nitrous oxide mass emission has been calculated | B13: Where available, data from N2O CEMS or periodic monitoring data should be used; otherwise, a suitable emissions factor should be used based on the tonnage of waste burned e.g. 0.0981 kgN20/t waste as per 2021 Pollution Inventory data for plants with urea-based SNCR - refer to adjacent Environment Agency guidance note or updated version for example descriptive text.
A14: Total annual carbon dioxide and nitrous oxide emissions as carbon dioxide equivalent (whereby 1 t nitrous oxide is equivalent to 298 t carbon dioxide) | B14: x tonnes CO2e | C14: =SUM(C6,G12) -> 249779.8
A16: Biogenic fraction of the waste and biogenic CO2 emissions (only plants burning residual municipal waste, refuse derived fuel or solid recovered fuel)
A17: Yearly average biogenic percentage of the waste by mass | B17: x % | C17: 65
A18: Description of how biogenic percentage has been calculated | B18: Where available, data from waste sampling should be used; otherwise, an estimated figure with justification can be used, or a figure assumed on the basis of a national average e.g. 2017 WRAP data for residual waste of 51.8% biogenic energy content - refer to adjacent Environment Agency guidance note or updated version for example descriptive text.
A19: Percentage of total carbon dioxide emissions arising from biogenic waste | B19: x % | C19: 65
A20: Description of how percentage biogenic carbon dioxide emissions have been calculated | B20: Examples include direct measurement via C14 method, BIOMA software or other method based on measured or assumed waste biogenic content - refer to adjacent Environment Agency guidance note or updated version for example descriptive text.
A22: Comments:
A23: C14 biogenic measurement used

Sheet Residue Quality
A1: =+'Cover Page'!$B$29 -> Annual Performance Report 2022 | E1: =+'Cover Page'!$B$33 -> The Coventry and Solihull Waste Disposal Company Limited
A3: Residue Quality Monitoring Requirements
A5: Summary of monitoring undertaken and compliance
A6: Monthly sampling and analysis of IBA, quarterly sampling and analysis of APCr with all required measures included
A13: Commentary on any specific events
A14: Date & Event | C14: Description
A27: Residue Quality Monitoring Results
A28: Parameter (unit) | C28: Limit | D28: Normal Operation
D29: Bottom ash | F29: APC Residues
A30: Loss on Ignition (average %) | C30: <5% | D30: 2.05
A31: Total Organic Carbon (average %) | C31: <3% | D31: N/a
A32: No. of Assessments Undertaken | C32: --- | D32: 4
A33: No. of Hazardous Results | C33: --- | D33: 0
A35: Comments :

Sheet Water
A1: =+'Cover Page'!$B$29 -> Annual Performance Report 2022 | E1: =+'Cover Page'!$B$33 -> The Coventry and Solihull Waste Disposal Company Limited
A3: Emissions to Water
A5: Summary of monitoring undertaken and compliance
A6: Weekly ph measurement taken of ash quench effluent before dispsoal to sewer by water treament contractors
A8: Effluent qualities monitored by STW
A13: Commentary on any specific events
A14: Date & Event | C14: Description
A15: 2022-11-08 | C15: High value recorded of 11.4 following water wash outage, effluent tank drained and cleaned, accumulated slurry removed and dispoed of safely, levels returned to normal at next monitoring check
A22: Emissions to Water / Sewer
A23: Parameter | D23: Monitoring Frequency | F23: Limit | G23: Target | H23: Max. | I23: Average
A24: PH | D24: weekly | F24: 12 | G24: 9 | H24: 11.4 | I24: 9.3

Sheet Air (periodic)
A1: =+'Cover Page'!$B$29 -> Annual Performance Report 2022 | E1: =+'Cover Page'!$B$33 -> The Coventry and Solihull Waste Disposal Company Limited
A3: Emissions to Air (periodically monitored)
A5: Summary of monitoring undertaken, standards used and compliance | M5: Notes:
M6: Template may require adjustment for any bespoke monitoring requirements of permit.
A9: Results of emissions to air that are periodically monitored
A10: Substance | C10: Ref. Period | D10: Emission Limit Value | F10: Average | M10: User to add additional tables as necessary, depending on whether quarterly or bi-annual reporting is required for the compliance year
F11: A1 | G11: A2 | H11: A3 | I11: A4 | J11: A5
A12: Hydrogen fluoride | C12: 1 hr | D12: 2 mg/m3 | F12: 0.555 | G12: 0.615 | H12: 0.525
A13: Cd and Th and their compounds | C13: 6-8hrs | D13: 0.05 mg/m3 | F13: 0.001 | G13: 0.001 | H13: 0.0015
A14: Hg and its compounds | C14: 6-8hrs | D14: 0.05 mg/m3 | F14: 0.00035 | G14: 0.00035 | H14: 0.001
A15: Sb, As, Pb, Cr, Co, Cu, Mn, Ni, V and their compounds | C15: 6-8hrs | D15: 0.5 mg/m3 | F15: 0.0245 | G15: 0.0215 | H15: 0.0225
A16: Dioxins & Furans (I-TEQ) | C16: 6-8hrs | D16: 0.1 ng/m3 | F16: 0.0237 | G16: 0.01315 | H16: 0.01085
A17: PCBs (WHO-TEQ Humans / Mammals) | C17: 6-8hrs | D17: None set ng/m3 | F17: 0.0023535 | G17: 0.000642 | H17: 0.0009925
A18: PCBs (WHO-TEQ Fish) | C18: 6-8hrs | D18: None set ng/m3 | F18: 0.0001015 | G18: 3.05e-05 | H18: 4.35e-05
A19: PCBs (WHO-TEQ Birds) | C19: 6-8hrs | D19: None set ng/m3 | F19: 0.003528 | G19: 0.001253 | H19: 0.0015965
A20: Dioxins & Furans (WHO-TEQ Humans / Mammals) | C20: 6-8hrs | D20: None set ng/m3 | F20: 0.0242 | G20: 0.01315 | H20: 0.0113
A21: Dioxins & Furans (WHO-TEQ Fish) | C21: 6-8hrs | D21: None set ng/m3 | F21: 0.02775 | G21: 0.013 | H21: 0.0127
A22: Dioxins & Furans (WHO-TEQ Birds) | C22: 6-8hrs | D22: None set ng/m3 | F22: 0.0411 | G22: 0.0171 | H22: 0.0182
A23: Anthanthrene | C23: 6-8hrs | D23: None set µg/m3 | F23: 0.00435 | G23: 0.00185 | H23: 0.00495
A24: Benzo(a)anthracene | C24: 6-8hrs | D24: None set µg/m3 | F24: 0.005 | G24: 0.00185 | H24: 0.0035
A25: Benzo(a)pyrene | C25: 6-8hrs | D25: None set µg/m3 | F25: 0.00185 | G25: 0.00185 | H25: 0.00185
A26: Benzo(b)fluoranthene | C26: 6-8hrs | D26: None set µg/m3 | F26: 0.014 | G26: 0.0021 | H26: 0.00335
A27: Benzo(b)naptho(2,1-d) thiophene | C27: 6-8hrs | D27: None set µg/m3 | F27: 0.0025 | G27: 0.00345 | H27: 0.00185
A28: Benzo(c)phenanthrene | C28: 6-8hrs | D28: None set µg/m3 | F28: 0.0093 | G28: 0.00185 | H28: 0.0022
A29: Benzo(ghi)perylene | C29: 6-8hrs | D29: None set µg/m3 | F29: 0.00285 | G29: 0.00185 | H29: 0.00405
A30: Benzo(k)fluoranthene | C30: 6-8hrs | D30: None set µg/m3 | F30: 0.00475 | G30: 0.00185 | H30: 0.00185
A31: Cholanthrene | C31: 6-8hrs | D31: None set µg/m3 | F31: 0.00185 | G31: 0.00185 | H31: 0.00185
A32: Chrysene | C32: 6-8hrs | D32: None set µg/m3 | F32: 0.044 | G32: 0.00425 | H32: 0.0065
A33: Cyclopenta(cd)pyrene | C33: 6-8hrs | D33: None set µg/m3 | F33: 0.00185 | G33: 0.00185 | H33: 0.0226
A34: Dibenzo(ai)pyrene | C34: 6-8hrs | D34: None set µg/m3 | F34: 0.00185 | G34: 0.00185 | H34: 0.00185
A35: Dibenzo(ah)anthracene | C35: 6-8hrs | D35: None set µg/m3 | F35: 0.00185 | G35: 0.00185 | H35: 0.00185
A36: Fluoranthene | C36: 6-8hrs | D36: None set µg/m3 | F36: 0.0374 | G36: 0.04725 | H36: 0.04735
A37: Indeno(123-cd) pyrene | C37: 6-8hrs | D37: None set µg/m3 | F37: 0.00275 | G37: 0.00185 | H37: 0.0023
A38: Naphthalene | C38: 6-8hrs | D38: None set µg/m3 | F38: 0.918 | G38: 0.12245 | H38: 0.1161
A39: Comments :

Sheet Air (CEMS)
A1: =+'Cover Page'!$B$29 -> Annual Performance Report 2022 | I1: =+'Cover Page'!$B$33 -> The Coventry and Solihull Waste Disposal Company Limited
A3: Emissions to Air (continously monitored)
P4: Notes:
A5: Summary of monitoring undertaken, standards used and compliance | P5: Template may require adjustment for any bespoke monitoring requirements of permit
A6: CEMs, duty for each line plus 1 stand-by CEMs. EN14181 MCERTS. Stack testing undertake twice yearly to check on the calibration factors etc. MIRFT, FID, etc A1-Cbiss are suppliers and service suppoirt for the equipment | P6: Report to 2 decimal places, i.e. xx.xx%
A11: Results of emissions to air that are continuously monitored (maximum and average values for each line)
A12: Substance | B12: Reference Period | C12: Emission Limit Value | D12: A1 | F12: A2 | H12: A3 | J12: A4 | L12: A5
D13: Max. | E13: Avg. | F13: Max. | G13: Avg. | H13: Max. | I13: Avg. | J13: Max. | K13: Avg. | L13: Max. | M13: Avg.
A14: Oxides of nitrogen | B14: Daily mean | C14: 200 mg/m3 | D14: =NOx!O19 -> 198.34 | E14: =NOx!N19 -> 189.4441667 | F14: =NOx!O34 -> 197.95 | G14: =NOx!N34 -> 189.3354545 | H14: =NOx!O49 -> 198.28 | I14: =NOx!N49 -> 192.1541667
B15: ½ hourly mean | C15: 400 mg/m3 | D15: =NOx!M19 -> 327.87 | E15: =NOx!L19 -> 189.1758333 | F15: =NOx!M34 -> 373.86 | G15: =NOx!L34 -> 189.0145455 | H15: =NOx!M49 -> 372.82 | I15: =NOx!L49 -> 192.1525
A16: Particulates | B16: Daily mean | C16: 10 mg/m3 | D16: =Particulates!O19 -> 6.32 | E16: =Particulates!N19 -> 1.4175 | F16: =Particulates!O34 -> 3.83 | G16: =Particulates!N34 -> 0.7118181818 | H16: =Particulates!O49 -> 7.23 | I16: =Particulates!N49 -> 2.780833333
B17: ½ hourly mean | C17: 30 mg/m3 | D17: =Particulates!M19 -> 13.06 | E17: =Particulates!L19 -> 1.415833333 | F17: =Particulates!M34 -> 26.68 | G17: =Particulates!L34 -> 0.7481818182 | H17: =Particulates!M49 -> 112.84 | I17: =Particulates!L49 -> 2.78
A18: Total Organic Carbon | B18: Daily mean | C18: 10 mg/m3 | D18: =TOC!O19 -> 3.68 | E18: =TOC!N19 -> 1.000833333 | F18: =TOC!O34 -> 1.28 | G18: =TOC!N34 -> 0.4272727273 | H18: =TOC!O49 -> 1.77 | I18: =TOC!N49 -> 0.6908333333
B19: ½ hourly mean | C19: 20 mg/m3 | D19: =TOC!M19 -> 18.08 | E19: =TOC!L19 -> 1.008333333 | F19: =TOC!M34 -> 11.72 | G19: =TOC!L34 -> 0.4318181818 | H19: =TOC!M49 -> 8.43 | I19: =TOC!L49 -> 0.6908333333
A20: Hydrogen chloride | B20: Daily mean | C20: 10 mg/m3 | D20: =HCl!O19 -> 2.15 | E20: =HCl!N19 -> 0.8141666667 | F20: =HCl!O34 -> 6.77 | G20: =HCl!N34 -> 1.001818182 | H20: =HCl!O49 -> 1.88 | I20: =HCl!N49 -> 0.985
B21: ½ hourly mean | C21: 60 mg/m3 | D21: =HCl!M19 -> 35.68 | E21: =HCl!L19 -> 0.82 | F21: =HCl!M34 -> 21.13 | G21: =HCl!L34 -> 1.001818182 | H21: =HCl!M49 -> 32.86 | I21: =HCl!L49 -> 0.9858333333
A22: Sulphur dioxide | B22: Daily mean | C22: 50 mg/m3 | D22: ='SO2'!O19 -> 48.8 | E22: ='SO2'!N19 -> 44.6475 | F22: ='SO2'!O34 -> 47.74 | G22: ='SO2'!N34 -> 40.93363636 | H22: ='SO2'!O49 -> 49.79 | I22: ='SO2'!N49 -> 39.76666667
B23: ½ hourly mean | C23: 200 mg/m3 | D23: ='SO2'!M19 -> 168.6 | E23: ='SO2'!L19 -> 44.5475 | F23: ='SO2'!M34 -> 169.45 | G23: ='SO2'!L34 -> 40.54818182 | H23: ='SO2'!M49 -> 162.13 | I23: ='SO2'!L49 -> 39.54083333
A24: Carbon monoxide | B24: Daily mean | C24: 50 mg/m3 | D24: ='CO 95% 10 min'!Q19 -> 48.39 | E24: ='CO 95% 10 min'!P19 -> 27.64583333 | F24: ='CO 95% 10 min'!Q34 -> 47.37 | G24: ='CO 95% 10 min'!P34 -> 24.29454545 | H24: ='CO 95% 10 min'!Q49 -> 47.99 | I24: ='CO 95% 10 min'!P49 -> 31.635
B25: ½ hourly mean * | C25: 100 mg/m3 *
B26: 95%ile 10-min avg * | C26: 150 mg/m3 * | D26: ='CO 95% 10 min'!M19 -> 68.8125 | E26: ='CO 95% 10 min'!N19 -> 27.62666667 | F26: ='CO 95% 10 min'!M34 -> 65.02 | G26: ='CO 95% 10 min'!N34 -> 24.29909091 | H26: ='CO 95% 10 min'!M49 -> 76.62833333 | I26: ='CO 95% 10 min'!N49 -> 31.59
A27: Ammonia | B27: Daily mean | C27: No limit set | D27: ='NH3'!O19 -> 26.99 | E27: ='NH3'!N19 -> 12.67916667 | F27: ='NH3'!O34 -> 32.78 | G27: ='NH3'!N34 -> 12 | H27: ='NH3'!O49 -> 40.11 | I27: ='NH3'!N49 -> 19.7225
A28: * = delete or amend as appropriate
A29: Comments :
A30: Taken from monthly report emailed to G Bains, site officer - • The FGT by-pass damper opened due to a fault on the 3rd, this has been reported as an abnormal operation. There were two half-hour periods which exceeded the ELV for dust, however these come under the period of abnormal operation and are therefore, not reportable as breaches of our ELV.

Sheet HCl
A1: =+'Cover Page'!$B$29 -> Annual Performance Report 2022 | E1: =+'Cover Page'!$B$33 -> The Coventry and Solihull Waste Disposal Company Limited
A3: Monitoring of Hydrogen Chloride emissions | D3: Whole Installation | G3: See Notes in Cell Q3 | J3: =+A3 -> Monitoring of Hydrogen Chloride emissions | N3: Per Combustion Line | Q3: Notes:
Q4: User to add logic to complete Whole installation, Table A5:G18. From the data in Per Combustion Line, Table J6:O79, subject to No. of lines installed
A5: mg/Nm3 | B5: 1/2 Hourly Reference Periods | E5: Daily Reference Periods
A6: =+'Cover Page'!C39 -> 2022 | B6: 1/2 hourly HCl ELV | C6: Monthly 1/2 hourly mean | D6: Highest 1/2 hourly maximum | E6: Daily HCl ELV | F6: Monthly daily mean | G6: Highest daily maximum | J6: =+A6 -> 2022 | K6: mg/Nm3 | L6: Monthly 1/2 hourly mean | M6: Monthly 1/2 hourly maximum | N6: Monthly daily mean | O6: Monthly daily maximum
A7: Jan | B7: 60 | C7: 0.93 | D7: 21.13 | E7: 10 | F7: 0.95 | G7: 3.32 | J7: A1 | K7: Jan | L7: 0.82 | M7: 2.31 | N7: 0.83 | O7: 1.09
A8: Feb | B8: 60 | C8: 0.67 | D8: 5.64 | E8: 10 | F8: 0.67 | G8: 1.26 | K8: Feb | L8: 0.89 | M8: 5.64 | N8: 0.87 | O8: 1.26
A9: Mar | B9: 60 | C9: 0.7 | D9: 21.17 | E9: 10 | F9: 0.69 | G9: 1.62 | K9: Mar | L9: 0.89 | M9: 4.1 | N9: 0.89 | O9: 1.14 | Q9: Whole Installation table A5:G18:
A10: Apr | B10: 60 | C10: 0.8 | D10: 4.41 | E10: 10 | F10: 0.81 | G10: 1.67 | K10: Apr | L10: 0.85 | M10: 2 | N10: 0.85 | O10: 0.99 | Q10: Mean: for 1/2 hourly and daily periods calculate mean of values across all operational combustion lines for the month
A11: May | B11: 60 | C11: 0.96 | D11: 5.44 | E11: 10 | F11: 0.97 | G11: 2.16 | K11: May | L11: 0.89 | M11: 2.35 | N11: 0.89 | O11: 1.18
A12: Jun | B12: 60 | C12: 1.34 | D12: 9.28 | E12: 10 | F12: 1.34 | G12: 2.75 | K12: Jun | L12: 0.9 | M12: 2.48 | N12: 0.9 | O12: 1.26
A13: Jul | B13: 60 | C13: 1.6 | D13: 10.19 | E13: 10 | F13: 1.61 | G13: 4.05 | K13: Jul | L13: 1.17 | M13: 5.81 | N13: 1.14 | O13: 2.15 | Q13: Maximum: for 1/2 hourly and daily periods use the highest value across all operational combustion lines for the month
A14: Aug | B14: 60 | C14: 1.93 | D14: 35.68 | E14: 10 | F14: 1.92 | G14: 6.77 | K14: Aug | L14: 1.16 | M14: 35.68 | N14: 1.14 | O14: 1.82
A15: Sep | B15: 60 | C15: 0.89 | D15: 32.86 | E15: 10 | F15: 0.83 | G15: 1.8 | K15: Sep | L15: 0.76 | M15: 4.36 | N15: 0.75 | O15: 1.8
A16: Oct | B16: 60 | C16: 0.6 | D16: 9.17 | E16: 10 | F16: 0.61 | G16: 1.59 | K16: Oct | L16: 0.49 | M16: 9.17 | N16: 0.49 | O16: 1.35
A17: Nov | B17: 60 | C17: 0.53 | D17: 14.1 | E17: 10 | F17: 0.54 | G17: 1.79 | K17: Nov | L17: 0.71 | M17: 14.1 | N17: 0.71 | O17: 1.79
A18: Dec | B18: 60 | C18: 0.42 | D18: 3.47 | E18: 10 | F18: 0.42 | G18: 1.05 | K18: Dec | L18: 0.31 | M18: 3.2 | N18: 0.31 | O18: 0.8
K19: Annual | L19: =AVERAGE(L7:L18) -> 0.82 | M19: =MAX(M7:M18) -> 35.68 | N19: =AVERAGE(N7:N18) -> 0.8141666667 | O19: =MAX(O7:O18) -> 2.15
J21: =+A6 -> 2022 | K21: mg/Nm3 | L21: Monthly 1/2 hourly mean | M21: Monthly 1/2 hourly maximum | N21: Monthly daily mean | O21: Monthly daily maximum
J22: A2 | K22: Jan | L22: 1.17 | M22: 21.13 | N22: 1.18 | O22: 3.32
K23: Feb | L23: 0.04 | M23: 2.79 | N23: 0.03 | O23: 1.1
K24: Mar | L24: 0.15 | M24: 4.09 | N24: 0.15 | O24: 0.95
K25: Apr | L25: 0.35 | M25: 4.41 | N25: 0.34 | O25: 0.77
K26: May | L26: 0.63 | M26: 5.44 | N26: 0.64 | O26: 2.16
K27: Jun | L27: 1.68 | M27: 7.42 | N27: 1.68 | O27: 2.75
K28: Jul | L28: 2.47 | M28: 10.19 | N28: 2.46 | O28: 4.05
K29: Aug | L29: 3.72 | M29: 17.17 | N29: 3.72 | O29: 6.77
K30: Sep
K31: Oct | L31: 0.23 | M31: 0.58 | N31: 0.24 | O31: 0.27
K32: Nov | L32: 0.3 | M32: 0.77 | N32: 0.3 | O32: 0.36
K33: Dec | L33: 0.28 | M33: 0.64 | N33: 0.28 | O33: 0.35
K34: Annual | L34: =AVERAGE(L22:L33) -> 1.001818182 | M34: =MAX(M22:M33) -> 21.13 | N34: =AVERAGE(N22:N33) -> 1.001818182 | O34: =MAX(O22:O33) -> 6.77
J36: =+A6 -> 2022 | K36: mg/Nm3 | L36: Monthly 1/2 hourly mean | M36: Monthly 1/2 hourly maximum | N36: Monthly daily mean | O36: Monthly daily maximum
J37: A3 | K37: Jan | L37: 0.8 | M37: 1.91 | N37: 0.8 | O37: 1.34
K38: Feb | L38: 0.87 | M38: 1.95 | N38: 0.87 | O38: 1.19
K39: Mar | L39: 1.1 | M39: 21.17 | N39: 1.08 | O39: 1.62
K40: Apr | L40: 1.15 | M40: 2.37 | N40: 1.15 | O40: 1.67
K41: May | L41: 1.31 | M41: 2.47 | N41: 1.31 | O41: 1.8
K42: Jun | L42: 1.47 | M42: 9.28 | N42: 1.47 | O42: 1.88
K43: Jul | L43: 1.04 | M43: 4.05 | N43: 1.06 | O43: 1.54
K44: Aug | L44: 0.9 | M44: 8.99 | N44: 0.9 | O44: 1.56
K45: Sep | L45: 1.02 | M45: 32.86 | N45: 0.93 | O45: 1.71
K46: Oct | L46: 0.89 | M46: 3.63 | N46: 0.89 | O46: 1.59
K47: Nov | L47: 0.62 | M47: 2.9 | N47: 0.7 | O47: 1.33
A48: Comments : | K48: Dec | L48: 0.66 | M48: 3.47 | N48: 0.66 | O48: 1.05
K49: Annual | L49: =AVERAGE(L37:L48) -> 0.9858333333 | M49: =MAX(M37:M48) -> 32.86 | N49: =AVERAGE(N37:N48) -> 0.985 | O49: =MAX(O37:O48) -> 1.88
J51: =+A6 -> 2022 | K51: mg/Nm3 | L51: Monthly 1/2 hourly mean | M51: Monthly 1/2 hourly maximum | N51: Monthly daily mean | O51: Monthly daily maximum
J52: A4 | K52: Jan
K53: Feb
K54: Mar
K55: Apr
K56: May
K57: Jun
K58: Jul
K59: Aug
K60: Sep
K61: Oct
K62: Nov
K63: Dec
K64: Annual | L64: =AVERAGE(L52:L63) ->  | M64: =MAX(M52:M63) -> 0 | N64: =AVERAGE(N52:N63) ->  | O64: =MAX(O52:O63) -> 0
J66: =+A6 -> 2022 | K66: mg/Nm3 | L66: Monthly 1/2 hourly mean | M66: Monthly 1/2 hourly maximum | N66: Monthly daily mean | O66: Monthly daily maximum
J67: A5 | K67: Jan
K68: Feb
K69: Mar
K70: Apr
K71: May
K72: Jun
K73: Jul
K74: Aug
K75: Sep
K76: Oct
K77: Nov
K78: Dec
K79: Annual | L79: =AVERAGE(L67:L78) ->  | M79: =MAX(M67:M78) -> 0 | N79: =AVERAGE(N67:N78) ->  | O79: =MAX(O67:O78) -> 0

Sheet SO2
A1: =+'Cover Page'!$B$29 -> Annual Performance Report 2022 | E1: =+'Cover Page'!$B$33 -> The Coventry and Solihull Waste Disposal Company Limited
A3: Monitoring of Sulphur dioxide emissions | D3: Whole Installation | G3: See Notes in Cell Q3 | J3: =+A3 -> Monitoring of Sulphur dioxide emissions | N3: Per Combustion Line | Q3: Notes:
Q4: User to add logic to complete Whole installation, Table A5:G18. From the data in Per Combustion Line, Table J6:O79, subject to No. of lines installed
A5: mg/Nm3 | B5: 1/2 Hourly Reference Periods | E5: Daily Reference Periods
A6: =+'Cover Page'!C39 -> 2022 | B6: 1/2 hourly SO2 ELV | C6: Monthly 1/2 hourly mean | D6: Highest 1/2 hourly maximum | E6: Daily SO2 ELV | F6: Monthly daily mean | G6: Highest daily maximum | J6: =+A6 -> 2022 | K6: mg/Nm3 | L6: Monthly 1/2 hourly mean | M6: Monthly 1/2 hourly maximum | N6: Monthly daily mean | O6: Monthly daily maximum
A7: Jan | B7: 200 | C7: 35.14 | D7: 119.1 | E7: 50 | F7: 35.26 | G7: 44.81 | J7: A1 | K7: Jan | L7: 42.04 | M7: 119.1 | N7: 42.12 | O7: 44.81
A8: Feb | B8: 200 | C8: 38.74 | D8: 96.93 | E8: 50 | F8: 38.62 | G8: 47.56 | K8: Feb | L8: 43.17 | M8: 95.77 | N8: 43.48 | O8: 47.56
A9: Mar | B9: 200 | C9: 42.22 | D9: 137.23 | E9: 50 | F9: 42.36 | G9: 48.06 | K9: Mar | L9: 45.52 | M9: 137.23 | N9: 45.62 | O9: 48.06 | Q9: Whole Installation table A5:G18:
A10: Apr | B10: 200 | C10: 44.82 | D10: 127.2 | E10: 50 | F10: 44.86 | G10: 48.66 | K10: Apr | L10: 46.41 | M10: 122.52 | N10: 46.41 | O10: 48.58 | Q10: Mean: for 1/2 hourly and daily periods calculate mean of values across all operational combustion lines for the month
A11: May | B11: 200 | C11: 43.29 | D11: 130.03 | E11: 50 | F11: 43.45 | G11: 48.8 | K11: May | L11: 44.4 | M11: 121 | N11: 44.47 | O11: 48.8
A12: Jun | B12: 200 | C12: 43.89 | D12: 138.3 | E12: 50 | F12: 43.89 | G12: 46.8 | K12: Jun | L12: 45.06 | M12: 121.25 | N12: 45.06 | O12: 46.8
A13: Jul | B13: 200 | C13: 42.87 | D13: 129.18 | E13: 50 | F13: 43 | G13: 49.79 | K13: Jul | L13: 45.04 | M13: 127.16 | N13: 45.11 | O13: 48.11 | Q13: Maximum: for 1/2 hourly and daily periods use the highest value across all operational combustion lines for the month
A14: Aug | B14: 200 | C14: 43.51 | D14: 168.6 | E14: 50 | F14: 43.83 | G14: 48.03 | K14: Aug | L14: 46.27 | M14: 168.6 | N14: 46.29 | O14: 48.03
A15: Sep | B15: 200 | C15: 44.18 | D15: 110.22 | E15: 50 | F15: 44.12 | G15: 48.23 | K15: Sep | L15: 45.23 | M15: 96.58 | N15: 45.05 | O15: 48.23
A16: Oct | B16: 200 | C16: 38.86 | D16: 103.62 | E16: 50 | F16: 39.24 | G16: 46.79 | K16: Oct | L16: 42.15 | M16: 101.84 | N16: 42.12 | O16: 46.79
A17: Nov | B17: 200 | C17: 39.53 | D17: 169.45 | E17: 50 | F17: 40.63 | G17: 47.26 | K17: Nov | L17: 43.96 | M17: 129.34 | N17: 44.72 | O17: 47.26
A18: Dec | B18: 200 | C18: 43.18 | D18: 162.13 | E18: 50 | F18: 43.19 | G18: 48.49 | K18: Dec | L18: 45.32 | M18: 157.26 | N18: 45.32 | O18: 48.49
K19: Annual | L19: =AVERAGE(L7:L18) -> 44.5475 | M19: =MAX(M7:M18) -> 168.6 | N19: =AVERAGE(N7:N18) -> 44.6475 | O19: =MAX(O7:O18) -> 48.8
J21: =+A6 -> 2022 | K21: mg/Nm3 | L21: Monthly 1/2 hourly mean | M21: Monthly 1/2 hourly maximum | N21: Monthly daily mean | O21: Monthly daily maximum
J22: A2 | K22: Jan | L22: 35.92 | M22: 104.55 | N22: 36.2 | O22: 41.84
K23: Feb | L23: 40.7 | M23: 96.93 | N23: 41.28 | O23: 45.18
K24: Mar | L24: 42.82 | M24: 134.08 | N24: 42.82 | O24: 46.81
K25: Apr | L25: 43.63 | M25: 127.2 | N25: 43.61 | O25: 45.8
K26: May | L26: 42.32 | M26: 105.24 | N26: 42.69 | O26: 45.69
K27: Jun | L27: 42.91 | M27: 96.97 | N27: 42.91 | O27: 45.88
K28: Jul | L28: 42.14 | M28: 116.37 | N28: 42.3 | O28: 45.85
K29: Aug | L29: 40.84 | M29: 109.98 | N29: 41.79 | O29: 46.83
K30: Sep
K31: Oct | L31: 34.28 | M31: 93.53 | N31: 35.51 | O31: 44.04
K32: Nov | L32: 36.83 | M32: 169.45 | N32: 37.52 | O32: 45.98
K33: Dec | L33: 43.64 | M33: 126.19 | N33: 43.64 | O33: 47.74
K34: Annual | L34: =AVERAGE(L22:L33) -> 40.54818182 | M34: =MAX(M22:M33) -> 169.45 | N34: =AVERAGE(N22:N33) -> 40.93363636 | O34: =MAX(O22:O33) -> 47.74
J36: =+A6 -> 2022 | K36: mg/Nm3 | L36: Monthly 1/2 hourly mean | M36: Monthly 1/2 hourly maximum | N36: Monthly daily mean | O36: Monthly daily maximum
J37: A3 | K37: Jan | L37: 28.03 | M37: 81.49 | N37: 28.12 | O37: 41.6
K38: Feb | L38: 33.47 | M38: 86.35 | N38: 33.45 | O38: 42.07
K39: Mar | L39: 38.06 | M39: 120.85 | N39: 38.04 | O39: 44.09
K40: Apr | L40: 44.3 | M40: 124.1 | N40: 44.3 | O40: 48.66
K41: May | L41: 43.41 | M41: 130.03 | N41: 43.41 | O41: 45.83
K42: Jun | L42: 43.69 | M42: 138.3 | N42: 43.67 | O42: 46.25
K43: Jul | L43: 41.27 | M43: 129.18 | N43: 41.57 | O43: 49.79
K44: Aug | L44: 43.51 | M44: 156.84 | N44: 43.51 | O44: 47.19
K45: Sep | L45: 43.09 | M45: 110.22 | N45: 43.16 | O45: 45.75
K46: Oct | L46: 37.83 | M46: 103.62 | N46: 37.99 | O46: 45.73
K47: Nov | L47: 37.24 | M47: 96.59 | N47: 39.39 | O47: 44.9
A48: Comments : | K48: Dec | L48: 40.59 | M48: 162.13 | N48: 40.59 | O48: 45.83
K49: Annual | L49: =AVERAGE(L37:L48) -> 39.54083333 | M49: =MAX(M37:M48) -> 162.13 | N49: =AVERAGE(N37:N48) -> 39.76666667 | O49: =MAX(O37:O48) -> 49.79
J51: =+A6 -> 2022 | K51: mg/Nm3 | L51: Monthly 1/2 hourly mean | M51: Monthly 1/2 hourly maximum | N51: Monthly daily mean | O51: Monthly daily maximum
J52: A4 | K52: Jan
K53: Feb
K54: Mar
K55: Apr
K56: May
K57: Jun
K58: Jul
K59: Aug
K60: Sep
K61: Oct
K62: Nov
K63: Dec
K64: Annual | L64: =AVERAGE(L52:L63) ->  | M64: =MAX(M52:M63) -> 0 | N64: =AVERAGE(N52:N63) ->  | O64: =MAX(O52:O63) -> 0
J66: =+A6 -> 2022 | K66: mg/Nm3 | L66: Monthly 1/2 hourly mean | M66: Monthly 1/2 hourly maximum | N66: Monthly daily mean | O66: Monthly daily maximum
J67: A5 | K67: Jan
K68: Feb
K69: Mar
K70: Apr
K71: May
K72: Jun
K73: Jul
K74: Aug
K75: Sep
K76: Oct
K77: Nov
K78: Dec
K79: Annual | L79: =AVERAGE(L67:L78) ->  | M79: =MAX(M67:M78) -> 0 | N79: =AVERAGE(N67:N78) ->  | O79: =MAX(O67:O78) -> 0

Sheet NOx
A1: =+'Cover Page'!$B$29 -> Annual Performance Report 2022 | E1: =+'Cover Page'!$B$33 -> The Coventry and Solihull Waste Disposal Company Limited
A3: Monitoring of Oxides of Nitrogen emissions | D3: Whole Installation | G3: See Notes in Cell Q3 | J3: =+A3 -> Monitoring of Oxides of Nitrogen emissions | N3: Per Combustion Line | Q3: Notes:
Q4: User to add logic to complete Whole installation, Table A5:G18. From the data in Per Combustion Line, Table J6:O79, subject to No. of lines installed
A5: mg/Nm3 | B5: 1/2 Hourly Reference Periods | E5: Daily Reference Periods
A6: =+'Cover Page'!C39 -> 2022 | B6: 1/2 hourly NOx ELV | C6: Monthly 1/2 hourly mean | D6: Highest 1/2 hourly maximum | E6: Daily NOx ELV | F6: Monthly daily mean | G6: Highest daily maximum | J6: =+A6 -> 2022 | K6: mg/Nm3 | L6: Monthly 1/2 hourly mean | M6: Monthly 1/2 hourly maximum | N6: Monthly daily mean | O6: Monthly daily maximum
A7: Jan | B7: 400 | C7: 187.13 | D7: 329.85 | E7: 200 | F7: 187.22 | G7: 196.17 | J7: A1 | K7: Jan | L7: 189.64 | M7: 279.67 | N7: 189.94 | O7: 196.17
A8: Feb | B8: 400 | C8: 189.51 | D8: 305.86 | E8: 200 | F8: 189.77 | G8: 197.61 | K8: Feb | L8: 188.71 | M8: 305.86 | N8: 189.24 | O8: 197.38
A9: Mar | B9: 400 | C9: 189.76 | D9: 314.05 | E9: 200 | F9: 189.75 | G9: 197.46 | K9: Mar | L9: 188.49 | M9: 314.05 | N9: 188.6 | O9: 194.58 | Q9: Whole Installation table A5:G18:
A10: Apr | B10: 400 | C10: 190.4 | D10: 306.14 | E10: 200 | F10: 190.64 | G10: 200.28 | K10: Apr | L10: 188.59 | M10: 217.45 | N10: 188.59 | O10: 196.92 | Q10: Mean: for 1/2 hourly and daily periods calculate mean of values across all operational combustion lines for the month
A11: May | B11: 400 | C11: 190.82 | D11: 308.93 | E11: 200 | F11: 191.09 | G11: 198.21 | K11: May | L11: 188.72 | M11: 308.93 | N11: 189.11 | O11: 198.21
A12: Jun | B12: 400 | C12: 189.56 | D12: 269.14 | E12: 200 | F12: 189.54 | G12: 197.76 | K12: Jun | L12: 186.65 | M12: 269.14 | N12: 186.65 | O12: 193.63
A13: Jul | B13: 400 | C13: 190.28 | D13: 327.87 | E13: 200 | F13: 190.36 | G13: 198.28 | K13: Jul | L13: 188.89 | M13: 327.87 | N13: 189.4 | O13: 197.14 | Q13: Maximum: for 1/2 hourly and daily periods use the highest value across all operational combustion lines for the month
A14: Aug | B14: 400 | C14: 191.84 | D14: 315.74 | E14: 200 | F14: 192.41 | G14: 198.34 | K14: Aug | L14: 193.14 | M14: 287.96 | N14: 193.26 | O14: 198.34
A15: Sep | B15: 400 | C15: 192.54 | D15: 302.09 | E15: 200 | F15: 192.36 | G15: 197.79 | K15: Sep | L15: 190.83 | M15: 302.09 | N15: 190.73 | O15: 197.24
A16: Oct | B16: 400 | C16: 192.36 | D16: 287.78 | E16: 200 | F16: 192.35 | G16: 197.95 | K16: Oct | L16: 191.96 | M16: 287.78 | N16: 191.96 | O16: 196.65
A17: Nov | B17: 400 | C17: 191.17 | D17: 372.82 | E17: 200 | F17: 192.04 | G17: 197.74 | K17: Nov | L17: 189.88 | M17: 264.74 | N17: 191.22 | O17: 197.74
A18: Dec | B18: 400 | C18: 186.64 | D18: 373.86 | E18: 200 | F18: 186.66 | G18: 197.43 | K18: Dec | L18: 184.61 | M18: 319.53 | N18: 184.63 | O18: 194.98
K19: Annual | L19: =AVERAGE(L7:L18) -> 189.1758333 | M19: =MAX(M7:M18) -> 327.87 | N19: =AVERAGE(N7:N18) -> 189.4441667 | O19: =MAX(O7:O18) -> 198.34
J21: =+A6 -> 2022 | K21: mg/Nm3 | L21: Monthly 1/2 hourly mean | M21: Monthly 1/2 hourly maximum | N21: Monthly daily mean | O21: Monthly daily maximum
J22: A2 | K22: Jan | L22: 184.69 | M22: 329.85 | N22: 184.64 | O22: 193.01
K23: Feb | L23: 188.97 | M23: 303.66 | N23: 189.04 | O23: 197.3
K24: Mar | L24: 188.68 | M24: 307.78 | N24: 188.68 | O24: 195.27
K25: Apr | L25: 188.48 | M25: 306.14 | N25: 189.09 | O25: 194.01
K26: May | L26: 189.97 | M26: 258.96 | N26: 190.34 | O26: 195.15
K27: Jun | L27: 189.36 | M27: 248.93 | N27: 189.36 | O27: 194.07
K28: Jul | L28: 188.17 | M28: 310.3 | N28: 188.19 | O28: 192.86
K29: Aug | L29: 188.38 | M29: 315.74 | N29: 189.92 | O29: 196.69
K30: Sep
K31: Oct | L31: 193.98 | M31: 260.28 | N31: 194.05 | O31: 197.95
K32: Nov | L32: 191.47 | M32: 274.56 | N32: 192.35 | O32: 197.68
K33: Dec | L33: 187.01 | M33: 373.86 | N33: 187.03 | O33: 197.43
K34: Annual | L34: =AVERAGE(L22:L33) -> 189.0145455 | M34: =MAX(M22:M33) -> 373.86 | N34: =AVERAGE(N22:N33) -> 189.3354545 | O34: =MAX(O22:O33) -> 197.95
J36: =+A6 -> 2022 | K36: mg/Nm3 | L36: Monthly 1/2 hourly mean | M36: Monthly 1/2 hourly maximum | N36: Monthly daily mean | O36: Monthly daily maximum
J37: A3 | K37: Jan | L37: 187.32 | M37: 238.92 | N37: 187.56 | O37: 194.11
K38: Feb | L38: 190.59 | M38: 303.79 | N38: 190.58 | O38: 197.61
K39: Mar | L39: 192.29 | M39: 280.8 | N39: 192.36 | O39: 197.46
K40: Apr | L40: 193.95 | M40: 265.71 | N40: 193.95 | O40: 198.28
K41: May | L41: 193.07 | M41: 248.17 | N41: 193.07 | O41: 197.06
K42: Jun | L42: 192.95 | M42: 265.51 | N42: 192.94 | O42: 197.76
K43: Jul | L43: 194.47 | M43: 281.78 | N43: 194.11 | O43: 198.28
K44: Aug | L44: 194.03 | M44: 292.61 | N44: 194.03 | O44: 197.26
K45: Sep | L45: 194.31 | M45: 258.58 | N45: 194.06 | O45: 197.79
K46: Oct | L46: 191.96 | M46: 234.72 | N46: 192.01 | O46: 197.65
K47: Nov | L47: 192.59 | M47: 372.82 | N47: 192.86 | O47: 196.95
A48: Comments : | K48: Dec | L48: 188.3 | M48: 283.85 | N48: 188.32 | O48: 196.91
K49: Annual | L49: =AVERAGE(L37:L48) -> 192.1525 | M49: =MAX(M37:M48) -> 372.82 | N49: =AVERAGE(N37:N48) -> 192.1541667 | O49: =MAX(O37:O48) -> 198.28
J51: =+A6 -> 2022 | K51: mg/Nm3 | L51: Monthly 1/2 hourly mean | M51: Monthly 1/2 hourly maximum | N51: Monthly daily mean | O51: Monthly daily maximum
J52: A4 | K52: Jan
K53: Feb
K54: Mar
K55: Apr
K56: May
K57: Jun
K58: Jul
K59: Aug
K60: Sep
K61: Oct
K62: Nov
K63: Dec
K64: Annual | L64: =AVERAGE(L52:L63) ->  | M64: =MAX(M52:M63) -> 0 | N64: =AVERAGE(N52:N63) ->  | O64: =MAX(O52:O63) -> 0
J66: =+A6 -> 2022 | K66: mg/Nm3 | L66: Monthly 1/2 hourly mean | M66: Monthly 1/2 hourly maximum | N66: Monthly daily mean | O66: Monthly daily maximum
J67: A5 | K67: Jan
K68: Feb
K69: Mar
K70: Apr
K71: May
K72: Jun
K73: Jul
K74: Aug
K75: Sep
K76: Oct
K77: Nov
K78: Dec
K79: Annual | L79: =AVERAGE(L67:L78) ->  | M79: =MAX(M67:M78) -> 0 | N79: =AVERAGE(N67:N78) ->  | O79: =MAX(O67:O78) -> 0

Sheet TOC
A1: =+'Cover Page'!$B$29 -> Annual Performance Report 2022 | E1: =+'Cover Page'!$B$33 -> The Coventry and Solihull Waste Disposal Company Limited
A3: Monitoring of Total organic carbon emissions | D3: Whole Installation | G3: See Notes in Cell Q3 | J3: =+A3 -> Monitoring of Total organic carbon emissions | N3: Per Combustion Line | Q3: Notes:
Q4: User to add logic to complete Whole installation, Table A5:G18. From the data in Per Combustion Line, Table J6:O79, subject to No. of lines installed
A5: mg/Nm3 | B5: 1/2 Hourly Reference Periods | E5: Daily Reference Periods
A6: =+'Cover Page'!C39 -> 2022 | B6: 1/2 hourly TOC ELV | C6: Monthly 1/2 hourly mean | D6: Highest 1/2 hourly maximum | E6: Daily TOC ELV | F6: Monthly daily mean | G6: Highest daily maximum | J6: =+A6 -> 2022 | K6: mg/Nm3 | L6: Monthly 1/2 hourly mean | M6: Monthly 1/2 hourly maximum | N6: Monthly daily mean | O6: Monthly daily maximum
A7: Jan | B7: 20 | C7: 0.55 | D7: 6.44 | E7: 10 | F7: 0.54 | G7: 1.26 | J7: A1 | K7: Jan | L7: 0.9 | M7: 6.44 | N7: 0.91 | O7: 1.26
A8: Feb | B8: 20 | C8: 0.73 | D8: 5.94 | E8: 10 | F8: 0.73 | G8: 1.73 | K8: Feb | L8: 0.96 | M8: 5.94 | N8: 0.97 | O8: 1.18
A9: Mar | B9: 20 | C9: 0.95 | D9: 6.95 | E9: 10 | F9: 0.96 | G9: 1.52 | K9: Mar | L9: 1.29 | M9: 6.95 | N9: 1.29 | O9: 1.52 | Q9: Whole Installation table A5:G18:
A10: Apr | B10: 20 | C10: 0.6 | D10: 6.26 | E10: 10 | F10: 0.6 | G10: 1.32 | K10: Apr | L10: 0.54 | M10: 6.26 | N10: 0.54 | O10: 1.32 | Q10: Mean: for 1/2 hourly and daily periods calculate mean of values across all operational combustion lines for the month
A11: May | B11: 20 | C11: 0.39 | D11: 6.06 | E11: 10 | F11: 0.39 | G11: 0.76 | K11: May | L11: 0.43 | M11: 6.06 | N11: 0.42 | O11: 0.67
A12: Jun | B12: 20 | C12: 0.52 | D12: 3.97 | E12: 10 | F12: 0.52 | G12: 0.81 | K12: Jun | L12: 0.6 | M12: 3.63 | N12: 0.6 | O12: 0.73
A13: Jul | B13: 20 | C13: 0.6 | D13: 8.43 | E13: 10 | F13: 0.6 | G13: 1.77 | K13: Jul | L13: 0.5 | M13: 4.22 | N13: 0.48 | O13: 0.79 | Q13: Maximum: for 1/2 hourly and daily periods use the highest value across all operational combustion lines for the month
A14: Aug | B14: 20 | C14: 0.61 | D14: 11.72 | E14: 10 | F14: 0.6 | G14: 1.44 | K14: Aug | L14: 0.54 | M14: 7.9 | N14: 0.54 | O14: 1.07
A15: Sep | B15: 20 | C15: 1.27 | D15: 7.45 | E15: 10 | F15: 1.27 | G15: 3.68 | K15: Sep | L15: 1.87 | M15: 7.45 | N15: 1.88 | O15: 3.68
A16: Oct | B16: 20 | C16: 0.88 | D16: 7.54 | E16: 10 | F16: 0.88 | G16: 3.4 | K16: Oct | L16: 1.25 | M16: 14.49 | N16: 1.25 | O16: 3.4
A17: Nov | B17: 20 | C17: 1.13 | D17: 14.9 | E17: 10 | F17: 1.12 | G17: 3.25 | K17: Nov | L17: 2.06 | M17: 14.9 | N17: 1.97 | O17: 3.25
A18: Dec | B18: 20 | C18: 0.73 | D18: 18.08 | E18: 10 | F18: 0.73 | G18: 1.61 | K18: Dec | L18: 1.16 | M18: 18.08 | N18: 1.16 | O18: 1.61
K19: Annual | L19: =AVERAGE(L7:L18) -> 1.008333333 | M19: =MAX(M7:M18) -> 18.08 | N19: =AVERAGE(N7:N18) -> 1.000833333 | O19: =MAX(O7:O18) -> 3.68
J21: =+A6 -> 2022 | K21: mg/Nm3 | L21: Monthly 1/2 hourly mean | M21: Monthly 1/2 hourly maximum | N21: Monthly daily mean | O21: Monthly daily maximum
J22: A2 | K22: Jan | L22: 0.17 | M22: 0.46 | N22: 0.17 | O22: 0.25
K23: Feb | L23: 0.21 | M23: 4.01 | N23: 0.22 | O23: 0.44
K24: Mar | L24: 0.78 | M24: 1.13 | N24: 0.78 | O24: 0.91
K25: Apr | L25: 0.6 | M25: 1.47 | N25: 0.6 | O25: 0.76
K26: May | L26: 0.14 | M26: 0.93 | N26: 0.14 | O26: 0.59
K27: Jun | L27: 0.39 | M27: 3.97 | N27: 0.39 | O27: 0.73
K28: Jul | L28: 0.25 | M28: 5.02 | N28: 0.25 | O28: 0.82
K29: Aug | L29: 0.38 | M29: 11.72 | N29: 0.34 | O29: 1.16
K30: Sep
K31: Oct | L31: 0.53 | M31: 7.54 | N31: 0.51 | O31: 1.08
K32: Nov | L32: 0.69 | M32: 1.62 | N32: 0.69 | O32: 1.28
K33: Dec | L33: 0.61 | M33: 1.32 | N33: 0.61 | O33: 0.66
K34: Annual | L34: =AVERAGE(L22:L33) -> 0.4318181818 | M34: =MAX(M22:M33) -> 11.72 | N34: =AVERAGE(N22:N33) -> 0.4272727273 | O34: =MAX(O22:O33) -> 1.28
J36: =+A6 -> 2022 | K36: mg/Nm3 | L36: Monthly 1/2 hourly mean | M36: Monthly 1/2 hourly maximum | N36: Monthly daily mean | O36: Monthly daily maximum
J37: A3 | K37: Jan | L37: 0.61 | M37: 2.43 | N37: 0.61 | O37: 0.91
K38: Feb | L38: 0.84 | M38: 4.2 | N38: 0.84 | O38: 1.73
K39: Mar | L39: 0.78 | M39: 5.01 | N39: 0.78 | O39: 1.37
K40: Apr | L40: 0.65 | M40: 4.37 | N40: 0.65 | O40: 1.12
K41: May | L41: 0.59 | M41: 3.86 | N41: 0.59 | O41: 0.76
K42: Jun | L42: 0.58 | M42: 3.62 | N42: 0.58 | O42: 0.81
K43: Jul | L43: 1.14 | M43: 8.43 | N43: 1.14 | O43: 1.77
K44: Aug | L44: 0.89 | M44: 4.89 | N44: 0.89 | O44: 1.44
K45: Sep | L45: 0.65 | M45: 4.61 | N45: 0.64 | O45: 1.25
K46: Oct | L46: 0.69 | M46: 2.14 | N46: 0.68 | O46: 1.55
K47: Nov | L47: 0.46 | M47: 1.61 | N47: 0.48 | O47: 1.23
A48: Comments : | K48: Dec | L48: 0.41 | M48: 4.08 | N48: 0.41 | O48: 0.56
K49: Annual | L49: =AVERAGE(L37:L48) -> 0.6908333333 | M49: =MAX(M37:M48) -> 8.43 | N49: =AVERAGE(N37:N48) -> 0.6908333333 | O49: =MAX(O37:O48) -> 1.77
J51: =+A6 -> 2022 | K51: mg/Nm3 | L51: Monthly 1/2 hourly mean | M51: Monthly 1/2 hourly maximum | N51: Monthly daily mean | O51: Monthly daily maximum
J52: A4 | K52: Jan
K53: Feb
K54: Mar
K55: Apr
K56: May
K57: Jun
K58: Jul
K59: Aug
K60: Sep
K61: Oct
K62: Nov
K63: Dec
K64: Annual | L64: =AVERAGE(L52:L63) ->  | M64: =MAX(M52:M63) -> 0 | N64: =AVERAGE(N52:N63) ->  | O64: =MAX(O52:O63) -> 0
J66: =+A6 -> 2022 | K66: mg/Nm3 | L66: Monthly 1/2 hourly mean | M66: Monthly 1/2 hourly maximum | N66: Monthly daily mean | O66: Monthly daily maximum
J67: A5 | K67: Jan
K68: Feb
K69: Mar
K70: Apr
K71: May
K72: Jun
K73: Jul
K74: Aug
K75: Sep
K76: Oct
K77: Nov
K78: Dec
K79: Annual | L79: =AVERAGE(L67:L78) ->  | M79: =MAX(M67:M78) -> 0 | N79: =AVERAGE(N67:N78) ->  | O79: =MAX(O67:O78) -> 0

Sheet Particulates
A1: =+'Cover Page'!$B$29 -> Annual Performance Report 2022 | E1: =+'Cover Page'!$B$33 -> The Coventry and Solihull Waste Disposal Company Limited
A3: Monitoring of Particulate matter emissions | D3: Whole Installation | G3: See Notes in Cell Q3 | J3: =+A3 -> Monitoring of Particulate matter emissions | N3: Per Combustion Line | Q3: Notes:
Q4: User to add logic to complete Whole installation, Table A5:G18. From the data in Per Combustion Line, Table J6:O79, subject to No. of lines installed
A5: mg/Nm3 | B5: 1/2 Hourly Reference Periods | E5: Daily Reference Periods
A6: =+'Cover Page'!C39 -> 2022 | B6: 1/2 hourly PM ELV | C6: Monthly 1/2 hourly mean | D6: Highest 1/2 hourly maximum | E6: Daily PM ELV | F6: Monthly daily mean | G6: Highest daily maximum | J6: =+A6 -> 2022 | K6: mg/Nm3 | L6: Monthly 1/2 hourly mean | M6: Monthly 1/2 hourly maximum | N6: Monthly daily mean | O6: Monthly daily maximum
A7: Jan | B7: 30 | C7: 1.79 | D7: 9.07 | E7: 10 | F7: 1.78 | G7: 5.85 | J7: A1 | K7: Jan | L7: 0.91 | M7: 1.79 | N7: 0.93 | O7: 1.41
A8: Feb | B8: 30 | C8: 2.43 | D8: 11.87 | E8: 10 | F8: 2.58 | G8: 7.23 | K8: Feb | L8: 0.84 | M8: 1.83 | N8: 0.84 | O8: 1.04
A9: Mar | B9: 30 | C9: 1.46 | D9: 11.38 | E9: 10 | F9: 1.46 | G9: 6.88 | K9: Mar | L9: 0.81 | M9: 3.23 | N9: 0.81 | O9: 1.01 | Q9: Whole Installation table A5:G18:
A10: Apr | B10: 30 | C10: 1.33 | D10: 8 | E10: 10 | F10: 1.27 | G10: 3.83 | K10: Apr | L10: 0.96 | M10: 2.32 | N10: 0.96 | O10: 1.27 | Q10: Mean: for 1/2 hourly and daily periods calculate mean of values across all operational combustion lines for the month
A11: May | B11: 30 | C11: 1.51 | D11: 15.4 | E11: 10 | F11: 1.55 | G11: 5.34 | K11: May | L11: 0.67 | M11: 2.04 | N11: 0.67 | O11: 1.22
A12: Jun | B12: 30 | C12: 1.58 | D12: 10.87 | E12: 10 | F12: 1.57 | G12: 4.75 | K12: Jun | L12: 1.24 | M12: 2.51 | N12: 1.24 | O12: 1.43
A13: Jul | B13: 30 | C13: 0.81 | D13: 4.32 | E13: 10 | F13: 0.79 | G13: 1.7 | K13: Jul | L13: 1.35 | M13: 2.53 | N13: 1.34 | O13: 1.7 | Q13: Maximum: for 1/2 hourly and daily periods use the highest value across all operational combustion lines for the month
A14: Aug | B14: 30 | C14: 1.32 | D14: 6.39 | E14: 10 | F14: 1.33 | G14: 3.38 | K14: Aug | L14: 1.53 | M14: 3.22 | N14: 1.54 | O14: 2.15
A15: Sep | B15: 30 | C15: 1.89 | D15: 112.84 | E15: 10 | F15: 1.8 | G15: 3.26 | K15: Sep | L15: 1.15 | M15: 2.18 | N15: 1.14 | O15: 1.64
A16: Oct | B16: 30 | C16: 1.93 | D16: 26.68 | E16: 10 | F16: 1.91 | G16: 3.97 | K16: Oct | L16: 1.43 | M16: 3.32 | N16: 1.43 | O16: 2.04
A17: Nov | B17: 30 | C17: 1.83 | D17: 11.05 | E17: 10 | F17: 1.8 | G17: 5.43 | K17: Nov | L17: 2.4 | M17: 6.52 | N17: 2.41 | O17: 3.75
A18: Dec | B18: 30 | C18: 2.64 | D18: 13.06 | E18: 10 | F18: 2.65 | G18: 6.32 | K18: Dec | L18: 3.7 | M18: 13.06 | N18: 3.7 | O18: 6.32
K19: Annual | L19: =AVERAGE(L7:L18) -> 1.415833333 | M19: =MAX(M7:M18) -> 13.06 | N19: =AVERAGE(N7:N18) -> 1.4175 | O19: =MAX(O7:O18) -> 6.32
J21: =+A6 -> 2022 | K21: mg/Nm3 | L21: Monthly 1/2 hourly mean | M21: Monthly 1/2 hourly maximum | N21: Monthly daily mean | O21: Monthly daily maximum
J22: A2 | K22: Jan | L22: 0.55 | M22: 1.87 | N22: 0.55 | O22: 0.62
K23: Feb | L23: 0.72 | M23: 7.84 | N23: 0.74 | O23: 2.42
K24: Mar | L24: 0.86 | M24: 11.38 | N24: 0.86 | O24: 2.34
K25: Apr | L25: 1.37 | M25: 8 | N25: 1.17 | O25: 3.83
K26: May | L26: 0.38 | M26: 1.14 | N26: 0.37 | O26: 0.48
K27: Jun | L27: 0.4 | M27: 0.69 | N27: 0.4 | O27: 0.45
K28: Jul | L28: 0.47 | M28: 1.88 | N28: 0.47 | O28: 1.21
K29: Aug | L29: 1.09 | M29: 6.39 | N29: 1.08 | O29: 3.38
K30: Sep
K31: Oct | L31: 1.01 | M31: 26.68 | N31: 0.81 | O31: 1.01
K32: Nov | L32: 0.78 | M32: 2.13 | N32: 0.78 | O32: 0.97
K33: Dec | L33: 0.6 | M33: 1.63 | N33: 0.6 | O33: 0.8
K34: Annual | L34: =AVERAGE(L22:L33) -> 0.7481818182 | M34: =MAX(M22:M33) -> 26.68 | N34: =AVERAGE(N22:N33) -> 0.7118181818 | O34: =MAX(O22:O33) -> 3.83
J36: =+A6 -> 2022 | K36: mg/Nm3 | L36: Monthly 1/2 hourly mean | M36: Monthly 1/2 hourly maximum | N36: Monthly daily mean | O36: Monthly daily maximum
J37: A3 | K37: Jan | L37: 3.87 | M37: 9.07 | N37: 3.88 | O37: 5.85
K38: Feb | L38: 4.94 | M38: 11.87 | N38: 4.94 | O38: 7.23
K39: Mar | L39: 2.79 | M39: 11 | N39: 2.92 | O39: 6.88
K40: Apr | L40: 1.65 | M40: 3.43 | N40: 1.65 | O40: 2.34
K41: May | L41: 3.16 | M41: 15.4 | N41: 3.16 | O41: 5.34
K42: Jun | L42: 3.23 | M42: 10.87 | N42: 3.24 | O42: 4.75
K43: Jul | L43: 0.59 | M43: 4.32 | N43: 0.59 | O43: 0.76
K44: Aug | L44: 1.36 | M44: 3.28 | N44: 1.36 | O44: 2.19
K45: Sep | L45: 2.65 | M45: 112.84 | N45: 2.47 | O45: 3.26
K46: Oct | L46: 2.88 | M46: 7.09 | N46: 2.88 | O46: 3.97
K47: Nov | L47: 2.6 | M47: 11.05 | N47: 2.64 | O47: 5.43
A48: Comments : | K48: Dec | L48: 3.64 | M48: 8.24 | N48: 3.64 | O48: 5.7
A49: Taken from monthly report emailed to G Bains, site officer - • The FGT by-pass damper opened due to a fault on the 3rd, this has been reported as an abnormal operation. There were two half-hour periods which exceeded the ELV for dust, however these come under the period of abnormal operation and are therefore, not reportable as breaches of our ELV. | K49: Annual | L49: =AVERAGE(L37:L48) -> 2.78 | M49: =MAX(M37:M48) -> 112.84 | N49: =AVERAGE(N37:N48) -> 2.780833333 | O49: =MAX(O37:O48) -> 7.23
J51: =+A6 -> 2022 | K51: mg/Nm3 | L51: Monthly 1/2 hourly mean | M51: Monthly 1/2 hourly maximum | N51: Monthly daily mean | O51: Monthly daily maximum
J52: A4 | K52: Jan
K53: Feb
K54: Mar
K55: Apr
K56: May
K57: Jun
K58: Jul
K59: Aug
K60: Sep
K61: Oct
K62: Nov
K63: Dec
K64: Annual | L64: =AVERAGE(L52:L63) ->  | M64: =MAX(M52:M63) -> 0 | N64: =AVERAGE(N52:N63) ->  | O64: =MAX(O52:O63) -> 0
J66: =+A6 -> 2022 | K66: mg/Nm3 | L66: Monthly 1/2 hourly mean | M66: Monthly 1/2 hourly maximum | N66: Monthly daily mean | O66: Monthly daily maximum
J67: A5 | K67: Jan
K68: Feb
K69: Mar
K70: Apr
K71: May
K72: Jun
K73: Jul
K74: Aug
K75: Sep
K76: Oct
K77: Nov
K78: Dec
K79: Annual | L79: =AVERAGE(L67:L78) ->  | M79: =MAX(M67:M78) -> 0 | N79: =AVERAGE(N67:N78) ->  | O79: =MAX(O67:O78) -> 0

Sheet CO 0.5hourly
A1: =+'Cover Page'!$B$29 -> Annual Performance Report 2022 | E1: =+'Cover Page'!$B$33 -> The Coventry and Solihull Waste Disposal Company Limited
A3: Monitoring of Carbon Monoxide (half hourly) | D3: Whole Installation | G3: See Notes in Cell Q3 | J3: =+A3 -> Monitoring of Carbon Monoxide (half hourly) | N3: Per Combustion Line | Q3: Notes:
Q4: User to add logic to complete Whole installation, Table A5:G18. From the data in Per Combustion Line, Table J6:O79, subject to No. of lines installed
A5: mg/Nm3 | B5: 1/2 Hourly Reference Periods | E5: Daily Reference Periods
A6: =+'Cover Page'!C39 -> 2022 | B6: 1/2 hourly CO ELV | C6: Monthly 1/2 hourly mean | D6: Highest 1/2 hourly maximum | E6: Daily CO ELV | F6: Monthly daily mean | G6: Highest daily maximum | J6: =+A6 -> 2022 | K6: mg/Nm3 | L6: Monthly 1/2 hourly mean | M6: Monthly 1/2 hourly maximum | N6: Monthly daily mean | O6: Monthly daily maximum
A7: Jan | B7: 100 | E7: 50 | J7: A1 | K7: Jan
A8: Feb | B8: =+B7 -> 100 | E8: =+E7 -> 50 | K8: Feb
A9: Mar | B9: =+B8 -> 100 | E9: =+E8 -> 50 | K9: Mar | Q9: Whole Installation table A5:G18:
A10: Apr | B10: 100 | E10: 50 | K10: Apr | Q10: Mean: for 1/2 hourly and daily periods calculate mean of values across all operational combustion lines for the month
A11: May | B11: 100 | E11: 50 | K11: May
A12: Jun | B12: 100 | E12: 50 | K12: Jun
A13: Jul | B13: 100 | E13: 50 | K13: Jul | Q13: Maximum: for 1/2 hourly and daily periods use the highest value across all operational combustion lines for the month
A14: Aug | B14: 100 | E14: 50 | K14: Aug
A15: Sep | B15: 100 | E15: 50 | K15: Sep
A16: Oct | B16: 100 | E16: 50 | K16: Oct
A17: Nov | B17: 100 | E17: 50 | K17: Nov
A18: Dec | B18: 100 | E18: 50 | K18: Dec
K19: Annual | L19: =AVERAGE(L7:L18) ->  | M19: =MAX(M7:M18) -> 0 | N19: =AVERAGE(N7:N18) ->  | O19: =MAX(O7:O18) -> 0
J21: =+A6 -> 2022 | K21: mg/Nm3 | L21: Monthly 1/2 hourly mean | M21: Monthly 1/2 hourly maximum | N21: Monthly daily mean | O21: Monthly daily maximum
J22: A2 | K22: Jan
K23: Feb
K24: Mar
K25: Apr
K26: May
K27: Jun
K28: Jul
K29: Aug
K30: Sep
K31: Oct
K32: Nov
K33: Dec
K34: Annual | L34: =AVERAGE(L22:L33) ->  | M34: =MAX(M22:M33) -> 0 | N34: =AVERAGE(N22:N33) ->  | O34: =MAX(O22:O33) -> 0
J36: =+A6 -> 2022 | K36: mg/Nm3 | L36: Monthly 1/2 hourly mean | M36: Monthly 1/2 hourly maximum | N36: Monthly daily mean | O36: Monthly daily maximum
J37: A3 | K37: Jan
K38: Feb
K39: Mar
K40: Apr
K41: May
K42: Jun
K43: Jul
K44: Aug
K45: Sep
K46: Oct
K47: Nov
A48: Comments : | K48: Dec
K49: Annual | L49: =AVERAGE(L37:L48) ->  | M49: =MAX(M37:M48) -> 0 | N49: =AVERAGE(N37:N48) ->  | O49: =MAX(O37:O48) -> 0
J51: =+A6 -> 2022 | K51: mg/Nm3 | L51: Monthly 1/2 hourly mean | M51: Monthly 1/2 hourly maximum | N51: Monthly daily mean | O51: Monthly daily maximum
J52: A4 | K52: Jan
K53: Feb
K54: Mar
K55: Apr
K56: May
K57: Jun
K58: Jul
K59: Aug
K60: Sep
K61: Oct
K62: Nov
K63: Dec
K64: Annual | L64: =AVERAGE(L52:L63) ->  | M64: =MAX(M52:M63) -> 0 | N64: =AVERAGE(N52:N63) ->  | O64: =MAX(O52:O63) -> 0
J66: =+A6 -> 2022 | K66: mg/Nm3 | L66: Monthly 1/2 hourly mean | M66: Monthly 1/2 hourly maximum | N66: Monthly daily mean | O66: Monthly daily maximum
J67: A5 | K67: Jan
K68: Feb
K69: Mar
K70: Apr
K71: May
K72: Jun
K73: Jul
K74: Aug
K75: Sep
K76: Oct
K77: Nov
K78: Dec
K79: Annual | L79: =AVERAGE(L67:L78) ->  | M79: =MAX(M67:M78) -> 0 | N79: =AVERAGE(N67:N78) ->  | O79: =MAX(O67:O78) -> 0

Sheet CO 95% 10 min
A1: =+'Cover Page'!$B$29 -> Annual Performance Report 2022 | E1: =+'Cover Page'!$B$33 -> The Coventry and Solihull Waste Disposal Company Limited
A3: Monitoring of Carbon Monoxide (10-minute avg) | E3: Whole Installation | H3: See Notes in Cell S3 | J3: =+A3 -> Monitoring of Carbon Monoxide (10-minute avg) | O3: Per Combustion Line | Q3: Notes: | S3: Notes:
S4: User to add logic to complete Whole installation, Table A5:H18. From the data in Per Combustion Line, Table K6:Q79, subject to No. of lines installed
A5: mg/Nm3 | B5: 10-minute Reference Periods | F5: Daily Reference Periods
A6: =+'Cover Page'!C39 -> 2022 | B6: 95%ile 10-min avg CO ELV | C6: 95%ile 10-min avg maximum | D6: Monthly CO 10-min avg mean | E6: 10-min avg maximum | F6: Daily CO ELV | G6: Monthly daily mean | H6: Highest daily maximum | K6: =+A6 -> 2022 | L6: mg/Nm3 | M6: 95%ile 10-min avg maximum | N6: Monthly CO 10-min avg mean | O6: 10-min avg maximum | P6: Monthly daily mean | Q6: Monthly daily maximum
A7: Jan | B7: 150 | C7: 67.92 | D7: 30.02 | E7: 519.72 | F7: 50 | G7: 29.88 | H7: 48.39 | K7: A1 | L7: Jan | M7: 67.92 | N7: 34.66 | O7: 407.13 | P7: 34.61 | Q7: 48.39
A8: Feb | B8: =+B7 -> 150 | C8: 129.62 | D8: 31.27 | E8: 479.96 | F8: =+F7 -> 50 | G8: 31.18 | H8: 47.58 | L8: Feb | M8: 129.62 | N8: 33.94 | O8: 479.96 | P8: 33.62 | Q8: 36.69
A9: Mar | B9: =+B8 -> 150 | C9: 79.03 | D9: 29.54 | E9: 1884.28 | F9: =+F8 -> 50 | G9: 29.3 | H9: 47.18 | L9: Mar | M9: 57.98 | N9: 32.37 | O9: 671.13 | P9: 32.42 | Q9: 39.05 | S9: Whole Installation table A5:H18:
A10: Apr | B10: 150 | C10: 68.26 | D10: 29.23 | E10: 403.39 | F10: 50 | G10: 29.35 | H10: 45.86 | L10: Apr | M10: 52.76 | N10: 29.09 | O10: 243.18 | P10: 29.09 | Q10: 36.15 | S10: Mean: for 10-min and daily periods use average of all operational combustion lines.
A11: May | B11: 150 | C11: 80.75 | D11: 25.84 | E11: 466.39 | F11: 50 | G11: 26.04 | H11: 46.61 | L11: May | M11: 39.49 | N11: 20.28 | O11: 334.87 | P11: 20.2 | Q11: 28.77
A12: Jun | B12: 150 | C12: 87.43 | D12: 26.99 | E12: 866.51 | F12: 50 | G12: 26.91 | H12: 45.37 | L12: Jun | M12: 40.16 | N12: 19.93 | O12: 248.45 | P12: 19.93 | Q12: 25.73
A13: Jul | B13: 150 | C13: 73.4 | D13: 21.4 | E13: 380.49 | F13: 50 | G13: 21.4 | H13: 34.29 | L13: Jul | M13: 48.25 | N13: 18.18 | O13: 365.98 | P13: 17.9 | Q13: 23.01 | S13: Maximum: for 10-min and daily periods use the highest of all operational combustion lines in any month.
A14: Aug | B14: 150 | C14: 75.53 | D14: 25.05 | E14: 392.9 | F14: 50 | G14: 25.19 | H14: 39.37 | L14: Aug | M14: 74.29 | N14: 21.04 | O14: 354.41 | P14: 21.2 | Q14: 31.03
A15: Sep | B15: 150 | C15: 99.52 | D15: 29.21 | E15: 901.53 | F15: 50 | G15: 29.41 | H15: 47.99 | L15: Sep | M15: 75.84 | N15: 25.18 | O15: 261.54 | P15: 25.36 | Q15: 39.42
A16: Oct | B16: 150 | C16: 74.6 | D16: 27.41 | E16: 587 | F16: 50 | G16: 27.45 | H16: 42.09 | L16: Oct | M16: 65.73 | N16: 26.2 | O16: 280.57 | P16: 26.17 | Q16: 34.51
A17: Nov | B17: 150 | C17: 82.85 | D17: 34.35 | E17: 393.23 | F17: 50 | G17: 34.89 | H17: 47.37 | L17: Nov | M17: 82.85 | N17: 37.47 | O17: 319.29 | P17: 38.04 | Q17: 46.3
A18: Dec | B18: 150 | C18: 90.86 | D18: 28 | E18: 559.17 | F18: 50 | G18: 28.02 | H18: 47.33 | L18: Dec | M18: 90.86 | N18: 33.18 | O18: 552.01 | P18: 33.21 | Q18: 47.33
L19: Annual | M19: =AVERAGE(M7:M18) -> 68.8125 | N19: =AVERAGE(N7:N18) -> 27.62666667 | O19: =MAX(O7:O18) -> 671.13 | P19: =AVERAGE(P7:P18) -> 27.64583333 | Q19: =MAX(Q7:Q18) -> 48.39
K21: =+A6 -> 2022 | L21: mg/Nm3 | M21: 95%ile 10-min avg maximum | N21: Monthly CO 10-min avg mean | O21: 10-min avg maximum | P21: Monthly daily mean | Q21: Monthly daily maximum
K22: A2 | L22: Jan | M22: 56.64 | N22: 24.22 | O22: 243.91 | P22: 24.3 | Q22: 32.17
L23: Feb | M23: 58.72 | N23: 21.17 | O23: 303.78 | P23: 20.98 | Q23: 26.31
L24: Mar | M24: 46.63 | N24: 19.82 | O24: 416.3 | P24: 19.82 | Q24: 24.97
L25: Apr | M25: 51.18 | N25: 22.56 | O25: 323.63 | P25: 22.06 | Q25: 27.76
L26: May | M26: 55.89 | N26: 19.45 | O26: 349.76 | P26: 19.51 | Q26: 27.13
L27: Jun | M27: 87.43 | N27: 28.64 | O27: 447.13 | P27: 28.64 | Q27: 45.37
L28: Jul | M28: 67.1 | N28: 24.25 | O28: 259.67 | P28: 24.33 | Q28: 34.29
L29: Aug | M29: 74.89 | N29: 27.49 | O29: 273.52 | P29: 27.71 | Q29: 37.58
L30: Sep
L31: Oct | M31: 64.01 | N31: 21.73 | O31: 508.88 | P31: 21.63 | Q31: 31.09
L32: Nov | M32: 79.38 | N32: 32.19 | O32: 393.23 | P32: 32.47 | Q32: 47.37
L33: Dec | M33: 73.35 | N33: 25.77 | O33: 559.17 | P33: 25.79 | Q33: 40.52
L34: Annual | M34: =AVERAGE(M22:M33) -> 65.02 | N34: =AVERAGE(N22:N33) -> 24.29909091 | O34: =MAX(O22:O33) -> 559.17 | P34: =AVERAGE(P22:P33) -> 24.29454545 | Q34: =MAX(Q22:Q33) -> 47.37
K36: =+A6 -> 2022 | L36: mg/Nm3 | M36: 95%ile 10-min avg maximum | N36: Monthly CO 10-min avg mean | O36: 10-min avg maximum | P36: Monthly daily mean | Q36: Monthly daily maximum
K37: A3 | L37: Jan | M37: 61.91 | N37: 31.65 | O37: 519.72 | P37: 31.45 | Q37: 41.89
L38: Feb | M38: 71.2 | N38: 35.18 | O38: 229.32 | P38: 35.17 | Q38: 47.58
L39: Mar | M39: 79.03 | N39: 37.07 | O39: 1884.28 | P39: 37.01 | Q39: 47.18
L40: Apr | M40: 68.26 | N40: 35.44 | O40: 403.39 | P40: 35.45 | Q40: 45.86
L41: May | M41: 80.75 | N41: 35.68 | O41: 466.39 | P41: 35.68 | Q41: 46.61
L42: Jun | M42: 83.92 | N42: 32.91 | O42: 866.51 | P42: 32.74 | Q42: 44.97
L43: Jul | M43: 73.4 | N43: 21.65 | O43: 380.49 | P43: 21.51 | Q43: 29.58
L44: Aug | M44: 75.53 | N44: 26.47 | O44: 392.9 | P44: 26.47 | Q44: 39.37
L45: Sep | M45: 99.52 | N45: 33.37 | O45: 901.53 | P45: 33.62 | Q45: 47.99
L46: Oct | M46: 74.6 | N46: 31.44 | O46: 587 | P46: 31.26 | Q46: 42.09
L47: Nov | M47: 76.96 | N47: 33.14 | O47: 331.9 | P47: 34.21 | Q47: 44.13
A48: Comments : | L48: Dec | M48: 74.46 | N48: 25.08 | O48: 292.15 | P48: 25.05 | Q48: 35.66
A49: Environment Agency explanatory note: The 10-minute average ELV is based on the “95th percentile”. In this case this means that 95% of the 10 minute averages in the relevant 24-hour period (i.e. 137) must be below 150 mg/Nm3, and 5% (i.e. 7) are allowed to be any value above 150 mg/Nm3. Whilst we expect operators to minimise CO emissions at all times, it is perfectly acceptable for the value of the maximum 10-minute average to be above 150 mg/Nm3, provided the 95th percentile ELV has been met for that period. | L49: Annual | M49: =AVERAGE(M37:M48) -> 76.62833333 | N49: =AVERAGE(N37:N48) -> 31.59 | O49: =MAX(O37:O48) -> 1884.28 | P49: =AVERAGE(P37:P48) -> 31.635 | Q49: =MAX(Q37:Q48) -> 47.99
K51: =+A6 -> 2022 | L51: mg/Nm3 | M51: 95%ile 10-min avg maximum | N51: Monthly CO 10-min avg mean | O51: 10-min avg maximum | P51: Monthly daily mean | Q51: Monthly daily maximum
K52: A4 | L52: Jan
L53: Feb
L54: Mar
L55: Apr
L56: May
L57: Jun
L58: Jul
L59: Aug
L60: Sep
L61: Oct
L62: Nov
L63: Dec
L64: Annual | M64: =AVERAGE(M52:M63) ->  | O64: =MAX(O52:O63) -> 0 | P64: =AVERAGE(P52:P63) ->  | Q64: =MAX(Q52:Q63) -> 0
K66: =+A6 -> 2022 | L66: mg/Nm3 | M66: 95%ile 10-min avg maximum | N66: Monthly CO 10-min avg mean | O66: 10-min avg maximum | P66: Monthly daily mean | Q66: Monthly daily maximum
K67: A5 | L67: Jan
L68: Feb
L69: Mar
L70: Apr
L71: May
L72: Jun
L73: Jul
L74: Aug
L75: Sep
L76: Oct
L77: Nov
L78: Dec
L79: Annual | M79: =AVERAGE(M67:M78) ->  | O79: =MAX(O67:O78) -> 0 | P79: =AVERAGE(P67:P78) ->  | Q79: =MAX(Q67:Q78) -> 0

Sheet NH3
A1: =+'Cover Page'!$B$29 -> Annual Performance Report 2022 | E1: =+'Cover Page'!$B$33 -> The Coventry and Solihull Waste Disposal Company Limited
A3: Monitoring of Ammnonia emissions | D3: Whole Installation | G3: See Notes in Cell Q3 | J3: =+A3 -> Monitoring of Ammnonia emissions | N3: Per Combustion Line | Q3: Notes:
Q4: User to add logic to complete Whole installation, Table A5:G18. From the data in Per Combustion Line, Table J6:O79, subject to No. of lines installed
A5: mg/Nm3 | B5: 1/2 Hourly Reference Periods | E5: Daily Reference Periods
A6: =+'Cover Page'!C39 -> 2022 | B6: 1/2 hourly NH3 ELV | C6: Monthly 1/2 hourly mean | D6: Highest 1/2 hourly maximum | E6: Daily NH3 ELV | F6: Monthly daily mean | G6: Highest daily maximum | J6: =+A6 -> 2022 | K6: mg/Nm3 | L6: Monthly 1/2 hourly mean | M6: Monthly 1/2 hourly maximum | N6: Monthly daily mean | O6: Monthly daily maximum
A7: Jan | B7: 0 | C7: 7.83 | D7: 33.46 | E7: 0 | F7: 7.87 | G7: 13.88 | J7: A1 | K7: Jan | L7: 9.91 | M7: 33.46 | N7: 10.11 | O7: 13.88
A8: Feb | B8: =+B7 -> 0 | C8: 11.17 | D8: 62.51 | E8: 0 | F8: 11.24 | G8: 29.92 | K8: Feb | L8: 11.2 | M8: 26.42 | N8: 11.36 | O8: 14.08
A9: Mar | B9: =+B8 -> 0 | C9: 11.96 | D9: 34.93 | E9: =+E8 -> 0 | F9: 11.86 | G9: 19.84 | K9: Mar | L9: 11.38 | M9: 28.21 | N9: 11.46 | O9: 14.99 | Q9: Whole Installation table A5:G18:
A10: Apr | B10: 0 | C10: 12.46 | D10: 36.81 | E10: 0 | F10: 12.6 | G10: 22.92 | K10: Apr | L10: 10.19 | M10: 30.48 | N10: 10.19 | O10: 13.87 | Q10: Mean: for 1/2 hourly and daily periods calculate mean of values across all operational combustion lines for the month
A11: May | B11: 0 | C11: 11.64 | D11: 32.58 | E11: 0 | F11: 11.75 | G11: 22.17 | K11: May | L11: 7.45 | M11: 19.42 | N11: 7.46 | O11: 10.45
A12: Jun | B12: 0 | C12: 10.53 | D12: 42.53 | E12: 0 | F12: 10.48 | G12: 27.97 | K12: Jun | L12: 4.99 | M12: 16.83 | N12: 4.99 | O12: 7.91
A13: Jul | B13: 0 | C13: 13.37 | D13: 68.97 | E13: 0 | F13: 13.34 | G13: 34.12 | K13: Jul | L13: 11.89 | M13: 48.6 | N13: 11.86 | O13: 19.92 | Q13: Maximum: for 1/2 hourly and daily periods use the highest value across all operational combustion lines for the month
A14: Aug | B14: 0 | C14: 16.74 | D14: 61.47 | E14: 0 | F14: 16.85 | G14: 39.06 | K14: Aug | L14: 19.05 | M14: 49.54 | N14: 19.16 | O14: 24.03
A15: Sep | B15: 0 | C15: 24.7 | D15: 68.61 | E15: 0 | F15: 24.95 | G15: 40.11 | K15: Sep | L15: 16.93 | M15: 53.93 | N15: 16.94 | O15: 26.99
A16: Oct | B16: 0 | C16: 19.61 | D16: 58.24 | E16: 0 | F16: 19.64 | G16: 32.89 | K16: Oct | L16: 16.32 | M16: 47.12 | N16: 16.32 | O16: 21.78
A17: Nov | B17: 0 | C17: 21.99 | D17: 59.98 | E17: 0 | F17: 22.17 | G17: 32.78 | K17: Nov | L17: 17.3 | M17: 53.48 | N17: 17.61 | O17: 23.96
A18: Dec | B18: 0 | C18: 18.17 | D18: 47.77 | E18: 0 | F18: 18.17 | G18: 28.33 | K18: Dec | L18: 14.68 | M18: 45.84 | N18: 14.69 | O18: 19.91
K19: Annual | L19: =AVERAGE(L7:L18) -> 12.6075 | M19: =MAX(M7:M18) -> 53.93 | N19: =AVERAGE(N7:N18) -> 12.67916667 | O19: =MAX(O7:O18) -> 26.99
J21: =+A6 -> 2022 | K21: mg/Nm3 | L21: Monthly 1/2 hourly mean | M21: Monthly 1/2 hourly maximum | N21: Monthly daily mean | O21: Monthly daily maximum
J22: A2 | K22: Jan | L22: 8.16 | M22: 17.61 | N22: 8.19 | O22: 11.85
K23: Feb | L23: 10.74 | M23: 27.02 | N23: 10.78 | O23: 15.89
K24: Mar | L24: 9.09 | M24: 17.7 | N24: 9.09 | O24: 12.74
K25: Apr | L25: 8.14 | M25: 25.9 | N25: 8.01 | O25: 12.73
K26: May | L26: 8.97 | M26: 20.32 | N26: 9 | O26: 14.24
K27: Jun | L27: 9.39 | M27: 19.53 | N27: 9.39 | O27: 13.58
K28: Jul | L28: 4.45 | M28: 16.84 | N28: 4.48 | O28: 8.25
K29: Aug | L29: 3.89 | M29: 15.49 | N29: 3.87 | O29: 7.09
K30: Sep
K31: Oct | L31: 22.9 | M31: 58.24 | N31: 23.24 | O31: 28.92
K32: Nov | L32: 26.17 | M32: 59.98 | N32: 26.18 | O32: 32.78
K33: Dec | L33: 19.76 | M33: 47.77 | N33: 19.77 | O33: 28.33
K34: Annual | L34: =AVERAGE(L22:L33) -> 11.96909091 | M34: =MAX(M22:M33) -> 59.98 | N34: =AVERAGE(N22:N33) -> 12 | O34: =MAX(O22:O33) -> 32.78
J36: =+A6 -> 2022 | K36: mg/Nm3 | L36: Monthly 1/2 hourly mean | M36: Monthly 1/2 hourly maximum | N36: Monthly daily mean | O36: Monthly daily maximum
J37: A3 | K37: Jan | L37: 5.59 | M37: 17.54 | N37: 5.53 | O37: 8.45
K38: Feb | L38: 11.41 | M38: 62.51 | N38: 11.4 | O38: 29.92
K39: Mar | L39: 15.69 | M39: 34.93 | N39: 15.63 | O39: 19.84
K40: Apr | L40: 18.68 | M40: 36.81 | N40: 18.68 | O40: 22.92
K41: May | L41: 17.04 | M41: 32.58 | N41: 17.04 | O41: 22.17
K42: Jun | L42: 17.83 | M42: 42.53 | N42: 17.8 | O42: 27.97
K43: Jul | L43: 25.96 | M43: 68.97 | N43: 26.03 | O43: 34.12
K44: Aug | L44: 27.24 | M44: 61.47 | N44: 27.24 | O44: 39.06
K45: Sep | L45: 32.7 | M45: 68.61 | N45: 33.27 | O45: 40.11
K46: Oct | L46: 21.26 | M46: 53.52 | N46: 21.4 | O46: 32.89
K47: Nov | L47: 22.39 | M47: 50.7 | N47: 22.6 | O47: 27.43
A48: Comments : | K48: Dec | L48: 20.06 | M48: 47.21 | N48: 20.05 | O48: 25.63
A49: An indicated ELV value of zero in the table above means that no ammonia limit is set in the permit. | K49: Annual | L49: =AVERAGE(L37:L48) -> 19.65416667 | M49: =MAX(M37:M48) -> 68.97 | N49: =AVERAGE(N37:N48) -> 19.7225 | O49: =MAX(O37:O48) -> 40.11
J51: =+A6 -> 2022 | K51: mg/Nm3 | L51: Monthly 1/2 hourly mean | M51: Monthly 1/2 hourly maximum | N51: Monthly daily mean | O51: Monthly daily maximum
J52: A4 | K52: Jan
K53: Feb
K54: Mar
K55: Apr
K56: May
K57: Jun
K58: Jul
K59: Aug
K60: Sep
K61: Oct
K62: Nov
K63: Dec
K64: Annual | L64: =AVERAGE(L52:L63) ->  | M64: =MAX(M52:M63) -> 0 | N64: =AVERAGE(N52:N63) ->  | O64: =MAX(O52:O63) -> 0
J66: =+A6 -> 2022 | K66: mg/Nm3 | L66: Monthly 1/2 hourly mean | M66: Monthly 1/2 hourly maximum | N66: Monthly daily mean | O66: Monthly daily maximum
J67: A5 | K67: Jan
K68: Feb
K69: Mar
K70: Apr
K71: May
K72: Jun
K73: Jul
K74: Aug
K75: Sep
K76: Oct
K77: Nov
K78: Dec
K79: Annual | L79: =AVERAGE(L67:L78) ->  | M79: =MAX(M67:M78) -> 0 | N79: =AVERAGE(N67:N78) ->  | O79: =MAX(O67:O78) -> 0
